{"text_format":"1","workbook":"xlsx","n_sheets":44,"sheets":["Свод","ОЦДК","Баганский р-н","Барабинский р-н","Бердск","Болотнинский р-н","Венгеровский р-н","НСК Магистр","НСК Дзержинский р-н","НСК Ленинский р-н","НСК Октябрьский","НСК Первомайский","НСК Советский","НСК Центральный р-н","Доволенский р-н","Здвинский р-н","г. Искитим","Искитисмский р-н","Карасукский р-н","Каргатский р-н","Колыванский р-н","Коченевский р-н","Кочковский р-н","Красноозерский р-н","Куйбышевский р-н","Купинский р-н","Кыштовский р-н","Маслянинский р-н","Мошковский р-н","Новосибирский р-н","Обь","Ордынский р-н","Р,П,Кольцово","Северный р-н","Сузунский р-н","Татарский р-н","Тогучинский р-н","Убинский р-н","Усть- Тарский р-н","Чановский р-н","Черепановский р-н","Чистоозерный р-н","Чулымский р-н","Конец"],"not_rendered":{"charts":0,"images":0,"macros":1,"external_links":0,"defined_names":8,"comments":34,"pivot_tables":0},"unopened":[],"bounds":{"document_bytes":16777216,"sheet_cells":100000,"rows_first":2000,"rows_last":500,"rows_between":2000,"halvings":0,"cell_chars":16384,"cell_head_chars":4096},"cells_cut":0,"cells_raw":0,"read":"whole","date_system":"1900"}

{"sheet":"Свод","index":0,"n_rows":50,"n_cols":17,"rows_kept":50,"cut":false,"hidden":false,"merged":[[1,14,2,14],[1,15,2,15],[0,1,0,10],[1,0,2,0],[1,1,2,1],[1,2,2,2],[1,3,1,5],[1,6,2,6],[1,7,2,7],[1,8,2,8],[1,9,2,9],[1,10,1,13]]}
[null,"Перечень\nобразовательных организаций, оказывающих услуги консультативной, психолого-педагогической и методической помощи (далее - услуги) родителям (законным представителям) детей от 0 до 18 лет, а также гражданам, желающим принять на воспитание в свои семьи детей, оставшихся без попечения родителей, действующих на территории муниципальных образований Новосибирской области (далее - ОО, оказывающие услуги)\n"]
["№","Муниципальный район/городской округ","Кол-во ОО, оказывающих услуги ","Специалист, ответственный за предоставление информации",null,null,"Наличие статуса КЦ/КП по локальным документам ОО","Наличие Приказа о создании КЦ/ оказании услуг в ОО","Наличие пункта в  Уставе ОО об оказании услуг ","Наличие муниципального/госу-дарственного задания  по оказанию  услуг ","Количество специалистов, оказывающих услуги",null,null,null,"Количество специалистов, прошедших КПК по вопросам оказания услуг","Количество услуг, оказанных в 2020 г."]
[null,null,null,"Ф.И.О.","телефон","e-mail",null,null,null,null,"педагог-психолог","учитель-логопед","учитель-дефектолог","соц. педагог"]
[1,2,3,4,5,6,7,8,9,10,11,12,13,14,15,16,"Услуг с МЗ/ГЗ"]
[1,"ОЦДК",11,"Свеженцева Аида Георгиевна",2120999,null,null,11,11,11,0,0,0,0,92,12000,{"$f":"IF(J5>=1,P5,\"\")","v":12000}]
[2,"Баганский р-н",3,"Тололо Ольга Алексеевна","8-383-53-49-348","lola505@bk.ru",3,3,0,0,3,3,1,2,9,418,{"$f":"IF(J6>=1,P6,\"\")","v":""}]
[3,"Барабинский р-н",33,"Сударикова Ольга Юрьевна","8(38361)22472","OlgaSudarikova2011@yandex.ru",1,33,1,0,29,29,6,21,49,1140,""]
[4,"Бердск",1,null,null,null,1,1,1,1,8,3,1,0,5,2890,2890]
[5,"Болотнинский р-н",2,"Жугурова Марина Сергеевна","8-383-49-22-906","sms@bolotnoe.ru",2,1,1,0,3,3,0,1,4,687,""]
[6,"Венгеровский р-н",null,null,null,null,null,null,null,null,null,null,null,null,null,null,""]
[7,"НСК Магистр",1,null,null,null,null,0,1,1,12,6,4,0,0,822,822]
[8,"НСК Дзержинский р-н",29,"Старых Лидия Васильевна ","8-913-933-46-46","Lida-vst@yandex.ru",6,5,19,0,30,46,8,22,17,2166,""]
[9,"НСК Ленинский р-н",14,"Белик Мария Леонидовна","228-84-50","mbelik@admnsk.ru",10,10,7,0,15,31,14,4,61,1132,""]
[10,"НСК Октябрьский",4,"Белякова Елена Сергеевна","228-82-99","esbeliakova@admnsk.ru",null,0,0,0,3,4,0,4,4,55,""]
[11,"НСК Первомайский",3,null,null,null,null,0,0,0,5,3,0,3,3,846,""]
[12,"НСК Советский",null,null,null,null,null,null,null,null,null,null,null,null,null,null,""]
[13,"НСК Центральный р-н",1,"Шакунова Наталья Юрьевна",89139436062,"Nshekunova@admnsk.ru",1,1,0,0,1,1,1,1,4,120,""]
[14,"Доволенский р-н",5,"Ковальчук Елена Николаевна","8(383)54 20314","kovalchuken@edu54.ru ",null,0,0,0,5,5,0,1,0,0,""]
[15,"Здвинский р-н",6,"Канеева\nЮлия Сергеевна\n","8(383)63-21-707","ysk-uo@mail.ru",1,1,6,0,6,4,0,2,3,310,""]
[16,"г. Искитим",31,"Кунгурцева Елена Алексеевна",89059539301,"elenak-isk@mail.ru",null,26,6,2,26,41,5,14,26,2526,2526]
[17,"Искитисмский р-н",18,"Кривошеева Людмила Васильевна","8(913)7150151","edu-kolzovo@yandex.ru",7,10,16,7,18,20,5,8,22,1430,1430]
[18,"Карасукский р-н",29,"Тур Татьяна Владимировна",89537891304,"tur.tatiana2016@mail.ru",null,0,0,0,26,29,0,23,41,1333,""]
[19,"Каргатский р-н",null,"Ермолович Анатолий Евгеньевич",89137099989,"Uo.ermolovich@gmail.com ",null,null,null,null,null,null,null,null,null,null,""]
[20,"Колыванский р-н",1,null,null,null,1,1,0,0,1,1,1,0,2,150,""]
[21,"Коченевский р-н",3,"Рузанова Екатерина Павловна","8(953)7830894","rek0102@yandex.ru",2,2,2,0,6,3,2,2,8,517,""]
[22,"Кочковский р-н",13,"Юстус Наталья Николаевна","8-383-56-22-365","nnyustus@mail.ru ",null,0,0,0,8,7,2,5,12,1200,""]
[23,"Красноозерский р-н",1,null,null,null,1,1,1,0,1,2,0,0,0,7,""]
[24,"Куйбышевский р-н",1,null,null,null,1,1,0,0,1,1,1,0,0,60,""]
[25,"Купинский р-н",17,"Османкина Светлана Васильевна","8 (383)58-20-045.","swetlana.osmankina@yandex.ru",4,6,17,0,12,10,3,10,42,1210,""]
[26,"Кыштовский р-н",1,null,null,null,1,1,0,0,1,1,1,0,0,47,""]
[27,"Маслянинский р-н",3,"Мусатова Мария Игоревна","8(383)47-22 275","musatovamariyy4ndex.ru@yandex.ru",2,2,2,0,3,5,0,1,0,24,""]
[28,"Мошковский р-н",null,"Курека Наталья Сергеевна","8(383)48 21-823","okureka@mail.ru",null,null,null,null,null,null,null,null,null,null,""]
[29,"Новосибирский р-н",56,"Лавриненко Ирина Валерьевна","8905-938-1766","soc@biolicey21.ru",56,55,56,0,75,71,24,37,0,3444,""]
[30,"Обь",2,null,null,null,2,2,2,0,3,4,0,1,2,1038,""]
[31,"Ордынский р-н",34,"Орлова Татьяна Николаевна","8(38359)23076","orlovatatyana1976@mail.ru",null,16,0,0,26,18,1,18,1,1165,""]
[32,"Р,П,Кольцово",1,null,"349-98-64","edu-kolzovo@yandex.ru",1,1,1,0,2,2,1,2,0,93,""]
[33,"Северный р-н",1,"Смык\nМария Александровна\n","8(38360) 21997","m.smik@yandex.ru",null,1,0,0,2,1,0,0,1,219,""]
[34,"Сузунский р-н",17,null,null,null,1,1,17,0,15,13,2,13,13,1584,""]
[35,"Татарский р-н",null,null,null,null,null,null,null,null,null,null,null,null,null,null,""]
[36,"Тогучинский р-н",2,"Лунева Анна Михайловна","8 383 40 24 855","a-m-l@ngs.ru",2,2,0,0,2,3,1,0,6,181,""]
[37,"Убинский р-н",4,null,null,null,null,0,0,0,2,1,0,2,1,160,""]
[38,"Усть- Тарский р-н",3,"Балыкова Т.С.","8-383-72-22-228","ust_roo.bts@mail.ru",3,3,1,0,3,3,0,1,1,420,""]
[39,"Чановский р-н",9,null,null,null,4,9,9,0,11,9,3,6,0,648,""]
[40,"Черепановский р-н",1,null,"8(38345)21741","ludmila.kuprina2016@yandex.ru",1,1,1,0,1,1,0,0,1,33,""]
[41,"Чистоозерный р-н",2,null,null,null,null,0,0,0,3,4,4,3,9,140,""]
[42,"Чулымский р-н",1,null,null,null,null,0,1,0,1,1,1,0,3,322,""]
[43,null,null,null,null,null,null,null,null,null,null,null,null,null,null,null,""]
[null,null,364,null,null,null,114,207,179,22,369,389,92,207,442,40537,{"$f":"SUM(Q5:Q47)","v":19668}]
[null,null,null,null,null,null,null,null,null,null,"Всего специалистов в КЦ",null,null,{"$f":"SUM(K48:N48)","v":1057},"из них обучено ",null,142]
[null,null,null,null,null,null,null,null,null,null,null,"Кол-во услуг, оказанных \"за так\"",null,null,null,null,{"$f":"P48-Q48","v":20869}]

{"sheet":"ОЦДК","index":1,"n_rows":15,"n_cols":16,"rows_kept":15,"cut":false,"hidden":false,"merged":[[1,8,2,8],[1,9,2,9],[1,10,1,13],[1,14,2,14],[1,15,2,15],[1,7,2,7],[1,0,2,0],[1,1,2,1],[1,2,2,2],[1,3,1,5],[1,6,2,6]]}
["Ответственный",null,"Свеженцева Аида Георгиевна","Тел",2120999,"e-mail"]
["№","Муниципальный район/городской округ","ОО, оказывающие услуги (полное название по Уставу)","Руководитель ОО, оказывающей услуги",null,null,"Наличие статуса КЦ/КП по локальным документам ОО","Наличие Приказа о создании КЦ/ оказании услуг в ОО","Наличие пункта в  Уставе ОО об оказании услуг ","Наличие муниципального/госу-дарственного задания  по оказанию  услуг ","Количество специалистов, оказывающих услуги",null,null,null,"Количество специалистов, прошедших КПК по вопросам оказания услуг","Количество услуг, оказанных в 2020 г."]
[null,null,null,"Ф.И.О.","телефон","e-mail",null,null,null,null,"педагог-психолог","учитель-логопед","учитель-дефектолог","соц. педагог"]
[null,null,"ГБУ НСО \"ОЦДК",null,null,null,11,11,11,11,null,null,null,null,92,12000]
[null,null,1]
[null,null,2]
[null,null,3]
[null,null,4]
[null,null,5]
[null,null,6]
[null,null,7]
[null,null,8]
[null,null,9]
[null,null,10]
[null,null,"Итого",null,null,null,null,11,11,11,0,0,0,0,92,12000]

{"sheet":"Баганский р-н","index":2,"n_rows":7,"n_cols":17,"rows_kept":7,"cut":false,"hidden":false,"merged":[[1,15,2,15],[3,1,5,1],[1,14,2,14],[3,0,5,0],[1,2,2,2],[1,3,1,5],[1,9,2,9],[1,10,1,13],[1,0,2,0],[1,1,2,1],[1,6,2,6],[1,7,2,7],[1,8,2,8]]}
["Ответственный",null,"Тололо Ольга Алексеевна","Тел","8-383-53-49-348","e-mail","lola505@bk.ru"]
["№","Муниципальный район/городской округ","ОО, оказывающие услуги (полное название по Уставу)","Руководитель ОО, оказывающей услуги",null,null,"Наличие статуса КЦ/КП по локальным документам ОО","Наличие Приказа о создании КЦ/ оказании услуг в ОО","Наличие пункта в  Уставе ОО об оказании услуг ","Наличие муниципального/госу-дарственного задания  по оказанию  услуг ","Количество специалистов, оказывающих услуги",null,null,null,"Количество специалистов, прошедших КПК по вопросам оказания услуг","Количество услуг, оказанных в 2020 г."]
[null,null,null,"Ф.И.О.","телефон","e-mail",null,null,null,null,"педагог-психолог","учитель-логопед","учитель-дефектолог","соц. педагог"]
["1.","Баганский","Консультационный центр МКДОУ Баганский детский сад №2 «Солнышко»","Сотникова Алена Александровна",89039025707,"detsadbagan2@mail.ru",1,1,0,0,1,1,1,0,3,98]
[null,null,"Консультационный центр по предоставлению методической, психолого-педагогической,  диагностической и консультативной помощи родителям (законным представителям), обеспечивающим получение детьми дошкольного образования в форме семейного образования на базе МБОУ Баганской средней общеобразовательной школы №1","Железко Галина Петровна",89139476885,"gelezkogalina@mail.ru",1,1,0,0,1,1,0,1,3,50,{"$f":"K6","v":1}]
[null,null,"Консультационный центр по предоставлению методической, психолого-педагогической,  диагностической и консультативной помощи родителям (законным представителям), обеспечивающим получение детьми дошкольного образования в форме семейного образования на базе МКОУ Баганской средней общеобразовательной школы №2,Консультационный центр по поддержке семей, имеющих детей от 0 до 18 лет\nна базе МКОУ Баганской средней общеобразовательной школа №2\n","Петрашевская Наталья Викторовна",89612203263,"nata82p@mail.ru",1,1,0,0,1,1,0,1,3,270]
[null,null,"Итого",null,null,null,3,3,0,0,3,3,1,2,9,418]

{"sheet":"Барабинский р-н","index":3,"n_rows":38,"n_cols":16,"rows_kept":38,"cut":false,"hidden":false,"merged":[[1,15,2,15],[3,0,8,0],[28,0,29,0],[34,0,35,0],[1,7,2,7],[1,8,2,8],[1,9,2,9],[1,10,1,13],[1,14,2,14],[1,0,2,0],[1,1,2,1],[1,2,2,2],[1,3,1,5],[1,6,2,6]]}
["Ответственный",null,"Сударикова Ольга Юрьевна","Тел","8(38361)22472","e-mail","OlgaSudarikova2011@yandex.ru"]
["Муниципальный район/городской округ","№","ОО, оказывающие услуги (полное название по Уставу)","Руководитель ОО, оказывающей услуги",null,null,"Наличие статуса КЦ/КП по локальным документам ОО (0-нет, 1 - есть, 2-планируется)","Наличие Приказа о создании КЦ/ оказании услуг в ОО (0-нет, 1 - есть)","Наличие пункта в  Уставе ОО об оказании услуг (0 - нет, 1 - есть) ","Наличие муниципального/госу-дарственного задания  по оказанию  услуг (0 - нет, 1 - есть) ","Количество специалистов, оказывающих услуги",null,null,null,"Количество специалистов, прошедших КПК по вопросам оказания услуг","Количество услуг, оказанных в 2020 г."]
[null,null,null,"Ф.И.О.","телефон","e-mail",null,null,null,null,"педагог-психолог","учитель-логопед","учитель-дефектолог","соц. педагог"]
["Барабинский район",1,"Муниципальное казенное дошкольное образовательное учреждение – детский сад комбинированного вида № 1 «Ручеек» Барабинского района Новосибирской области","Афонина Рамила Мингалиевна","8(38361)21720"," mdou1bar@mail.ru    ",0,1,0,0,1,2,0,0,0,50]
[null,2,"Муниципальное казенное дошкольное образовательное учреждение - детский сад №2 «Золотой ключик» Барабинского района Новосибирской области","Первухина Оксана Владимировна ","8(38361)26906","mkdou2@yandex.ru",0,1,0,0,1,1,0,0,1,10]
[null,3,"Муниципальное  казенное дошкольное образовательное учреждение–детский сад комбинированного вида №3 Барабинского района Новосибирской области ","Герман Ирина Алексеевна","8(38361)29892","mkdou3bar@mail.ru",0,1,0,0,1,2,1,0,12,12]
[null,4,"Муниципальное казенное дошкольное образовательное учреждение - детский сад №4 «Колокольчик» Барабинского района Новосибирской области","Сумина Елена Петровна",83836122848,"mkdou.kolokolshik.bar@mail.ru",0,1,0,0,1,1,0,0,7,9]
[null,5,"Муниципальное казенное дошкольное образовательное учреждение-детский сад комбинированного вида № 5 \"Рябинка\" Барабинского района Новосибирской области","Гаврилова Наталья Николаевна","8 (38361)25541","mrdou5@mail.ru",0,1,0,0,1,2,0,0,1,9]
[null,6,"Муниципальное казенное дошкольное образовательное учреждение -  детский сад комбинированного вида №6 «Сказка» Барабинского района Новосибирской области","Доценко Елена Владимировна",83836123624,"skazka.mdou6@yandex.ru",0,1,0,0,1,1,0,0,1,65]
[null,7,"Муниципальное казенное дошкольное образовательное учреждение «Детский сад комбинированного вида №7 «Радуга» Барабинского района Новосибирской области","Ловицкая Маргарита Николаевна","8(38361)24668","raduga.mdou7@yandex.ru",1,1,1,0,1,1,1,0,3,241]
[null,8,"Муниципальное казенное дошкольное образовательное учреждение – детский сад комбинированного вида №8 «Солнышко» Барабинского района  Новосибирской области","Борисова Елена Васильевна","8(383)25065","barsad8@mail.ru",2,1,0,0,1,2,0,0,3,51]
[null,9,"Муниципальное казенное дошкольное образовательное учреждение - Новоярковский детский сад Брабинского района Новосибирской области","Первухина Татьяна Михайловна","8(38361)96186","novoyarkovskiydetskiysad@mail.ru",0,1,0,0,0,0,0,0,2,4]
[null,10,"Муниципальное казенное дошкольное образовательное учреждение - Новоульяновский детский сад с.Новоульяновское Барабинского района Новосибирской области","Балобина Светлана Сергеевна","8(38361)90136","mdou_novoul@mail.ru",0,1,0,0,0,0,0,0,2,4]
[null,11,"Муниципальное казенное дошкольное образовательное учреждение \"Новокурупкаевский детский сад\" Барабинского района Новосибирскойобласти","Кусикеева Халима Хакимовна",83836120268,"novokurupkaevskiydetskiysad@mail.ru",0,1,0,0,0,0,0,0,0,16]
[null,12,"Муниципальное казенное дошкольное образовательное учреждение - Новокозловский детский сад Барабинского района Новосибирской области","Елина Наталья Сергеевна","8(383)61-95249","novokoslovskds@mail.ru",0,1,0,0,0,0,0,0,3,11]
[null,13,"Муниципальное казенное общеобразовательное учреждение средняя общеобразовательная школа № 1 Барабинского района Новосибирской области","Басалаев Олег Владимирович","8(38361)23808","shkola1-bar@yandex.ru",2,1,0,0,1,1,1,1,0,14]
[null,14,"Муниципальное бюджетное общеобразовательное учреждение средняя общеобразовательная школа №2 Барабинского района Новосибирской области","Гребенщиков Алдексей Николаевич","8(38361)22333","bar2@ngs.ru",2,1,0,0,1,1,0,2,0,34]
[null,15,"Муниципальное бюджетное  общеобразовательное учреждение средняя общеобразовательная школа №3 Барабинского района Новосибирской области","Гутов Евгений Эдуардович","8(38361)23756","bar_3@ngs.ru ",0,1,0,0,1,1,0,1,0,102]
[null,16,"Муниципальное казенное учреждение средняя общеобразовательная школа № 47 Барабинского района Новосибирской области","Лысова Марина Анатольевна","8 (38361)24383","bar_47@mail.ru",2,1,0,0,1,1,1,1,0,13]
[null,17,"Муниципальное бюджетное общеобразовательное учреждение средняя общеобразовательная школа №92 Барабинского района Новосибирской области","Гербер Юлия Николаевна","8(38361)21299","shcola92@mail.ru",0,1,0,0,2,1,1,1,0,74]
[null,18,"Муниципальное бюджетное общеобразовательное учреждение  средняя общеобразовательная школа №93 Барабинского района Новосибирской области","Судариков Денис Валентинович","8(38661)23237","bar93@ngs.ru",0,1,0,0,1,1,0,1,0,94]
[null,19,"Муниципальное казенное общеобразовательное учреждение Устьянцевская средняя общеобразовательная школ аБарабинского района Новосибирской области","Наурусов Тимур Мовсумович","8 (38361)62142","ustyanc.bar@yandex.ru",0,1,0,0,1,1,0,1,3,6]
[null,20,"Муниципальное казенное общеобразовательное учреждение Козловская средняя общеобразовательная школа Барабинского района Новосибирской области ","Коршунов Валерий Николаевич",83836195163,"kozlovsk@yandex.ru",0,1,0,0,1,0,0,1,1,27]
[null,21,"Муниципальное казенное общеобразовательное учреждение Новоярковская средняя общеобразовательная школа Барабинского района Новосибирской области","Стадникова Татьяна Леонидовна","8-383-61-96-122","elenagerma@yandex.ru",0,1,0,0,1,1,0,1,2,31]
[null,22,"Муниципальное казенное общеобразовательное учреждение Новоспасская средняя общеобразовательная школа Барабинского района Новосибирской области","Иванова Елена Сергеевна","(383)6198175","novospassk@yandex.ru",0,1,0,0,1,0,0,1,2,13]
[null,23,"Муниципальное казенное общеобразовательное учреждение Новочановская средняя общеобразовательная школа Барабинского района Новосибирской области","Женгульдинова Ирина Августовна","8 383 61 97202","novochanovo@gmail.com",0,1,0,0,1,1,0,1,0,10]
[null,24,"Муниципальное казенное общеобразовательное учреждение Новониколаевская средняя общеобразовательная школа Барабинского района Новосибирской области","Суворова Наталья Владимировна","8(38361)65147","novonikolaeka1@yandex.ru",0,1,0,0,1,1,1,1,0,12]
[null,25,"Муниципальное казенное общеобразовательное учреждение Старощербаковская средняя общеобразовательная школа Барабинского района Новосибирской области","Межуева Зоя Николаевна",89139459925,"STsherbaki@yandex.ru ",0,1,0,0,1,1,0,1,0,36]
[null,26,"Муниципальное казенное общеобразовательное учреждение Шубинская средняя общеобразовательная школа Барабинского района Новосибирской области","Чичулина Светлана Михайловна","8(383)6194138","s_shub_bar@edu4.ru",0,1,0,0,1,1,0,1,0,25]
[null,27,"Муниципальное казенное общеобразовательное учреждение Кармаклинская  средняя общеобразовательная школа Барабинского района Новосибирской области имени Героя Советского Союза Д.П.Бурцева ","Еремина Надежда Николаевна","8(38361)63188","karmakla_soh@mail.ru",0,1,0,0,1,1,0,1,2,37]
[null,28,"Муниципальное казенное общеобразовательное учреждение Зюзинская средняя общеобразовательная школа Барабинского района Новосибирской области","Монастырева Лариса Викторовна",89139504788,"zuzashkola@yandex.ru",0,1,0,0,1,2,0,2,0,51]
[null,29,"Муниципальное казенное общеобразовательное учреждение Таскаевская средняя общеобразовательная школа Барабинского района Новосибирской области","Карпенко Светлана Владимировна","8(38361)91139","taskaevo2007@yandex.ru",0,1,0,0,2,2,0,1,2,13]
[null,30,"Муниципальное казенное общеобразовательное учреждение Бадажковская основная общеобразовательная школа Барабинского района Новосибирской области  ","Кондратьев Андрей Михайлович","8(38361)67197","badagki@yandex.ru",0,1,0,0,1,0,0,1,1,5]
[null,31,"Муниципальное казенное общеобразовательное учреждение Тополевская основная общеобразовательная школа Барабинского района, Новосибирской области","Штерцер Антонина Петровна",89061933360,"topolewka@yandex.ru",0,1,0,0,0,0,0,1,1,11]
[null,32,"Муниципальное казенное общеобразовательное учреждение Кожевниковская начальная общеобразовательная школа Барабинского района Новосибирской области","Алекесейцев Владимир Михайлович ","8(38361)99136","kojevnicovo@yandex.ru",0,1,0,0,0,0,0,0,0,7]
[null,33,"Муниципальное бюджетное образовательное учреждение дополнительного образования Барабинского района Новосибирской области \"Центр дополнительного образования детей\"","Романцан Наталья Владимировна","8 (38361)21943"," cdodbar@mail.ru    ",0,1,0,0,1,0,0,0,0,43]
[null,null,"Итого",null,null,"кц",1,33,1,0,29,29,6,21,49,1140]
[null,null,null,null,null,"перспектива",1]

{"sheet":"Бердск","index":4,"n_rows":5,"n_cols":16,"rows_kept":5,"cut":false,"hidden":false,"merged":[[1,14,2,14],[1,15,2,15],[3,1,6,1],[1,0,2,0],[1,1,2,1],[1,2,2,2],[1,8,2,8],[1,9,2,9],[1,3,1,5],[1,7,2,7],[1,10,1,13],[1,6,2,6]]}
["Ответственный",null,null,"Тел",null,"e-mail"]
["№","Муниципальный район/городской округ","ОО, оказывающие услуги (полное название по Уставу)","Руководитель ОО, оказывающей услуги",null,null,"Наличие статуса КЦ/КП по локальным документам ОО (0-нет, 1 - есть, 2-планируется)","Наличие Приказа о создании КЦ/ оказании услуг в ОО (0-нет, 1 - есть)","Наличие пункта в  Уставе ОО об оказании услуг (0 - нет, 1 - есть) ","Наличие муниципального/госу-дарственного задания  по оказанию  услуг (0 - нет, 1 - есть) ","Количество специалистов, оказывающих услуги",null,null,null,"Количество специалистов, прошедших КПК по вопросам оказания услуг","Количество услуг, оказанных в 2020 г."]
[null,null,null,"Ф.И.О.","телефон","e-mail",null,null,null,null,"педагог-психолог","учитель-логопед","учитель-дефектолог","соц. педагог"]
[null,"город Бердск","Муниципальное бюджетное образовательное учреждение дополнительного образования и психолого-педагогического сопровождения \"Перспектива\"","Добролюбская Ольга Васильевна","8(383)41-500-12","gcdt_berdsk@mail.ru",1,1,1,1,8,3,1,0,5,2890]
[null,null,"Итого",null,null,null,1,1,1,1,8,3,1,0,5,2890]

{"sheet":"Болотнинский р-н","index":5,"n_rows":6,"n_cols":16,"rows_kept":6,"cut":false,"hidden":false,"merged":[[1,14,2,14],[1,15,2,15],[3,0,8,0],[3,1,8,1],[1,0,2,0],[1,1,2,1],[1,2,2,2],[1,3,1,5],[1,6,2,6],[1,7,2,7],[1,8,2,8],[1,9,2,9],[1,10,1,13]]}
["Ответственный",null,"Жугурова Марина Сергеевна","Тел","8-383-49-22-906","e-mail","sms@bolotnoe.ru"]
["№","Муниципальный район/городской округ","ОО, оказывающие услуги (полное название по Уставу)","Руководитель ОО, оказывающей услуги",null,null,"Наличие статуса КЦ/КП по локальным документам ОО (0-нет, 1 - есть, 2-планируется)","Наличие Приказа о создании КЦ/ оказании услуг в ОО (0-нет, 1 - есть)","Наличие пункта в  Уставе ОО об оказании услуг (0 - нет, 1 - есть) ","Наличие муниципального/госу-дарственного задания  по оказанию  услуг (0 - нет, 1 - есть) ","Количество специалистов, оказывающих услуги",null,null,null,"Количество специалистов, прошедших КПК по вопросам оказания услуг","Количество услуг, оказанных в 2020 г."]
[null,null,null,"Ф.И.О.","телефон","e-mail",null,null,null,null,"педагог-психолог","учитель-логопед","учитель-дефектолог","соц. педагог"]
["1.","Болотнинский район","1. Муниципальное казенное учреждение центр психолого-педагогической и социальной помощи детям \"Дельфин\" Болотнинского района Новосибирской области","Оганесян Рузанна Гарибовна","8-383-49-21-807","delfin-bol@yandex.ru ",1,0,1,0,2,2,0,1,4,522]
[null,null,"2. Муниципальное бюджетное дошкольное образовательное учреждение детский сад комбинированного вида \"Сказка\" г. Болотного Болотнинского района Новосибирской области","Нетелева Людмила Викторовна","8-383-49-25-121","dsskazka_bol@mail.ru ",1,1,0,0,1,1,0,0,0,165]
[null,null,"Итого",null,null,null,2,1,1,0,3,3,0,1,4,687]

{"sheet":"Венгеровский р-н","index":6,"n_rows":4,"n_cols":16,"rows_kept":4,"cut":false,"hidden":false,"merged":[[1,14,2,14],[1,15,2,15],[1,0,2,0],[1,1,2,1],[1,2,2,2],[1,3,1,5],[1,6,2,6],[1,7,2,7],[1,8,2,8],[1,9,2,9],[1,10,1,13]]}
["Ответственный",null,null,"Тел",null,"e-mail"]
["№","Муниципальный район/городской округ","ОО, оказывающие услуги (полное название по Уставу)","Руководитель ОО, оказывающей услуги",null,null,"Наличие статуса КЦ/КП по локальным документам ОО","Наличие Приказа о создании КЦ/ оказании услуг в ОО","Наличие пункта в  Уставе ОО об оказании услуг ","Наличие муниципального/госу-дарственного задания  по оказанию  услуг ","Количество специалистов, оказывающих услуги",null,null,null,"Количество специалистов, прошедших КПК по вопросам оказания услуг","Количество услуг, оказанных в 2020 г."]
[null,null,null,"Ф.И.О.","телефон","e-mail",null,null,null,null,"педагог-психолог","учитель-логопед","учитель-дефектолог","соц. педагог"]
[null,null,"Итого"]

{"sheet":"НСК Магистр","index":7,"n_rows":17,"n_cols":16,"rows_kept":17,"cut":false,"hidden":false,"merged":[[1,14,2,14],[1,15,2,15],[3,0,8,0],[3,1,8,1],[1,0,2,0],[1,1,2,1],[1,2,2,2],[1,3,1,5],[1,6,2,6],[1,7,2,7],[1,8,2,8],[1,9,2,9],[1,10,1,13]]}
["Ответственный",null,null,"Тел",null,"e-mail"]
["№","Муниципальный район/городской округ","ОО, оказывающие услуги (полное название по Уставу)","Руководитель ОО, оказывающей услуги",null,null,"Наличие статуса КЦ/КП по локальным документам ОО (0-нет, 1 - есть, 2-планируется)","Наличие Приказа о создании КЦ/ оказании услуг в ОО (0-нет, 1 - есть)","Наличие пункта в  Уставе ОО об оказании услуг (0 - нет, 1 - есть) ","Наличие муниципального/госу-дарственного задания  по оказанию  услуг (0 - нет, 1 - есть) ","Количество специалистов, оказывающих услуги",null,null,null,"Количество специалистов, прошедших КПК по вопросам оказания услуг","Количество услуг, оказанных в 2020 г."]
[null,null,null,"Ф.И.О.","телефон","e-mail",null,null,null,null,"педагог-психолог","учитель-логопед","учитель-дефектолог","соц. педагог"]
["1.","Новосибирск","Муниципальное казенное учреждение дополнительного профессионального образования города Новосибирска \"Городской центр образования и здоровья \"Магистр\"","Склянова Нина Александровна","(383)3047104","magistr@magistr54.ru",0,0,1,1,12,6,4,0,0,822]
[null,null,"Итого",null,null,null,null,0,1,1,12,6,4,0,0,822]
[]
[]
[]
[]
[]
[]
[]
[]
[]
[null,null,null,null,null,null,null,null,null,null,"педагогов-психологов - 12"]
[null,null,null,null,null,null,null,null,null,null,"учителей-логопедов - 6"]
[null,null,null,null,null,null,null,null,null,null,"учителей-дефектологов - 4"]

{"sheet":"НСК Дзержинский р-н","index":8,"n_rows":35,"n_cols":16,"rows_kept":35,"cut":false,"hidden":false,"merged":[[1,14,2,14],[1,15,2,15],[3,0,8,0],[3,1,8,1],[17,1,18,1],[1,7,2,7],[1,8,2,8],[1,9,2,9],[1,10,1,13],[1,3,1,5],[1,6,2,6],[24,0,32,0],[24,1,32,1],[1,0,2,0],[1,1,2,1],[1,2,2,2]]}
["Ответственный",null,"Старых Лидия Васильевна ","Тел","8-913-933-46-46","e-mail","Lida-vst@yandex.ru"]
["№","Муниципальный район/городской округ","ОО, оказывающие услуги (полное название по Уставу)","Руководитель ОО, оказывающей услуги",null,null,"Наличие статуса КЦ/КП по локальным документам ОО (0-нет, 1 - есть, 2-планируется)","Наличие Приказа о создании КЦ/ оказании услуг в ОО (0-нет, 1 - есть)","Наличие пункта в  Уставе ОО об оказании услуг (0 - нет, 1 - есть) ","Наличие муниципального/госу-дарственного задания  по оказанию  услуг (0 - нет, 1 - есть) ","Количество специалистов, оказывающих услуги",null,null,null,"Количество специалистов, прошедших КПК по вопросам оказания услуг","Количество услуг, оказанных в 2020 г."]
[null,null,null,"Ф.И.О.","телефон","e-mail",null,null,null,null,"педагог-психолог","учитель-логопед","учитель-дефектолог","соц. педагог"]
["1.","Дзержинский","муниципальное бюджетное общеобразовательное учреждение города Новосибирска \"Средняя общеобразовательная школа № 7\"","Луценко Андрей Александрович","267-68-01","s_7@edu54.ru",0,0,1,0,1,1,0,1,0,83]
[null,null,"муниципальное   автономное общеобразовательное  учреждение города Новосибирска \"Гимназия № 15 \"Содружество\"","Станкевич Елена Александровна","278-12-78","gym_15_nsk@nios.ru",0,0,1,0,3,1,0,1,0,250]
[null,null,"муниципальное бюджетное общеобразовательное учреждение города Новосибирска \"Средняя общеобразовательная школа № 18\"","Чурина Наталья Александровна","288-03-30","sch_18_nsk@nios.ru",0,0,1,0,1,0,0,1,0,50]
[null,null,"муниципальное бюджетное общеобразовательное учреждение города Новосибирска \"Средняя общеобразовательная школа № 36\"","Шустова Наталья Николаевна","271-47-55","s_36@edu54.ru",0,0,1,0,1,1,0,1,0,30]
[null,null,"муниципальное казенное общеобразовательное учреждение города Новосибирска \"Специальная (коррекционная)школа № 53\"","Тимофеева Татьяна Анатольевна","278-51-75","sch_53_nsk @ nios.ru",0,0,1,0,2,2,0,1,0,152]
[null,null,"муниципальное бюджетное общеобразовательное учреждение города Новосибирска \"Средняя общеобразовательная школа № 57\"","Степина Татьяна Борисовна","265-97-63","sch_57_nsk@nios.ru",0,0,1,0,0,1,0,1,0,48]
[null,null,"муниципальное бюджетное общеобразовательное учреждение города Новосибирска \"Средняя общеобразовательная школа № 59\"","Левченко Сергей Николаевич","261-92-44","sch_59_nsk@nios.ru",0,0,0,0,1,0,0,1,0,18]
[null,null,"муниципальное бюджетное общеобразовательное учреждение города Новосибирска \"Средняя общеобразовательная школа № 71\"","Серафимов Алексей Александрович","240-08-55","sch_71_nsk@nios.ru",0,0,0,0,1,1,1,1,0,49]
[null,null,"муниципальное бюджетное общеобразовательное учреждение города Новосибирска \"Средняя общеобразовательная школа № 82\"","Минаева Елена Владимировна","209-38-11","sch_82_nsk@nios.ru",0,0,1,0,2,1,1,1,2,150]
[null,null,"муниципальное бюджетное общеобразовательное учреждение города Новосибирска \"Средняя общеобразовательная школа № 87\"","Голикова Вера Александровна","261-30-38","s_87.edu54.ru",0,0,1,0,1,1,0,1,0,35]
[null,null,"муниципальное бюджетное общеобразовательное учреждение города Новосибирска \"Средняя общеобразовательная школа № 96 с углубленным изучением английского языка\"","Резванова Галина Афанасьевна",2784459,"s_96@edu54.ru",0,0,1,0,1,1,0,1,2,113]
[null,null,"муниципальное бюджетное общеобразовательное учреждение города Новосибирска \"Средняя общеобразовательная школа № 111\"","Леонова Ольга Александровна","279-05-64","s_111.edu54.ru",0,0,1,0,1,0,0,1,0,94]
[null,null,"муниципальное бюджетное общеобразовательное учреждение города Новосибирска \"Лицей № 113\"","Ануфриева Татьяна Викторовна","267-69-07","sch_113_nsk@nios.ru",0,0,1,0,2,1,1,1,0,45]
[null,null,"муниципальное бюджетное общеобразовательное учреждение города Новосибирска \"Средняя общеобразовательная школа № 153\"","Кириченко Галина Федоровна","265-68-54","s_153.edu54.ru",0,0,1,0,1,1,0,2,0,107]
[null,null,"муниципальное бюджетное общеобразовательное учреждение города Новосибирска \"Средняя общеобразовательная школа № 169\"","Ничипоренко Елена Станиславовна","279-22-56","\nsch-169nsk@yandex.ru",0,0,1,0,1,2,0,1,0,65]
[null,null,"муниципальное бюджетное общеобразовательное учреждение \"Средняя общеобразовательная школа № 177\"","Фукс Евгений Владимирович","267-66-29","sch_177_nsk@nios.ru",0,0,1,0,1,1,0,1,0,68]
[null,null,"муниципальное бюджетное общеобразовательное учреждение \"Средняя общеобразовательная школа № 178\"","Сазонова Елена Ивановна","8(383) 279-21-70","s_178@edu54.ru",0,0,0,0,1,1,0,2,0,242]
[null,null,"муниципальное бюджетное общеобразовательное учреждение города Новосибирска \"Средняя общеобразовательная школа № 197","Смердина Татьяна Васильевна ","(8-383)261-57-85","sch_197_nsk@nios.ru  ",0,0,0,0,0,1,0,2,0,153]
[null,null,"муниципальное казенное общеобразовательное учреждение города Новосибирска \"Прогимназия \"Зимородок\"","Сотникова Татьяна Анатольевна","267-32-74","zimorodok464@yandex.ru",0,0,1,0,1,1,0,0,0,35]
[null,null,"муниципальное бюджетное общеобразовательное учреждение города Новосибирска \"Аэрокосмический лицей им. Ю.В. Кондратюка\"","Тумаева Татьяна  Мироновна","279-55-85","licey_kondratuka_nsk@nios.ru",0,0,1,0,1,0,0,1,0,32]
[]
["1.","Дзержинский район","муниципальное казенное дошкольное образовательное учреждение города Новосибирска «Детский сад № 110 компенсирующего вида»","Королева Тамара Александровна","288-13-23","ds_110_nsk@nios.ru",0,0,0,0,0,0,0,0,0,0]
[null,null,"Муниципальное казенное дошкольное образовательное учреждение города Новосибирска \"Детский сад № 395 компенсирующего вида\"","Харченко С.Ф.","8-952-937-31-81","ds_395_nsk@nios,ru",1,null,0,0,1,3,0,0,0,0]
[null,null,"муниципальное казенное дошкольное образовательное учреждение города Новосибирска «Детский сад № 362 комбинированного вида»","Веселова Наталья Сергеевна","279-18-07","ds_362_nsk@nios.ru",1,1,0,0,1,4,1,0,0,17]
[null,null,"муниципальное автономное дошкольное образовательное учреждение города Новосибирска «Детский сад № 439 комбинированного вида»","В.М. Волченко","261-09-19","ds_439_nsk@nios.ru",2,0,1,0,1,4,0,0,5,68]
[null,null,"муниципальное дошкольное образовательное учреждение города Новосибирска \"Детский сад №493 комбинированного вида\"","Терехова Алла Николаевна","279-63-33","ds_493_nsk@mail.ru",2,0,1,0,1,5,1,0,0,179]
[null,null,"муниципальное казенное дошкольное образовательное учреждение города Новосибирска \"Детский сад № 281 комбинированного вида\"","Соколова Ольга Николаевна","279-11-62","ds_281_nsk@nios.ru",1,1,1,0,1,5,2,0,8,64]
[null,null,"Муниципальное казенное дошкольное образовательное учреждение города Новосибирска \"Детский сад № 430 комбинированного вида\"","Пяткова Елена Леонидовна","271-28-80","ds_430_nsk@nios.ru",1,1,0,0,2,4,1,0,0,17]
[null,null,"муниципальное казенное дошкольное образовательное учреждение города Носоибирска \"Детский сад № 381 комбинированного вида\"","Сапрыгина надежда Петровна","278-19-49","ds_381_nsk@nios.ru",1,1,0,0,0,2,0,0,0,2]
[null,null,"муниципальное казенное дошкольное образовательное учреждение города Новосибирска Детский сад № 105 комбинированного вида \"Улыбка\"","Соболева Антонина Владимировна","279-07-09/279-23-32","ds_105_nsk@nios.ru",1,1,0,0,0,1,0,0,0,0]
[null,null,"Итого",null,null,null,6,5,19,0,30,46,8,22,17,2166]
[null,null,null,null,null,null,2]

{"sheet":"НСК Ленинский р-н","index":9,"n_rows":19,"n_cols":16,"rows_kept":19,"cut":false,"hidden":false,"merged":[[1,14,2,14],[1,15,2,15],[15,0,16,0],[15,1,16,1],[1,0,2,0],[1,1,2,1],[1,2,2,2],[1,3,1,5],[1,6,2,6],[1,7,2,7],[1,8,2,8],[1,9,2,9],[1,10,1,13]]}
["Ответственный",null,"Белик Мария Леонидовна","Тел","228-84-50","e-mail","mbelik@admnsk.ru"]
["№","Муниципальный район/городской округ","ОО, оказывающие услуги (полное название по Уставу)","Руководитель ОО, оказывающей услуги",null,null,"Наличие статуса КЦ/КП по локальным документам ОО (0-нет, 1 - есть, 2-планируется)","Наличие Приказа о создании КЦ/ оказании услуг в ОО (0-нет, 1 - есть)","Наличие пункта в  Уставе ОО об оказании услуг (0 - нет, 1 - есть) ","Наличие муниципального/госу-дарственного задания  по оказанию  услуг (0 - нет, 1 - есть) ","Количество специалистов, оказывающих услуги",null,null,null,"Количество специалистов, прошедших КПК по вопросам оказания услуг","Количество услуг, оказанных в 2020 г."]
[null,null,null,"Ф.И.О.","телефон","e-mail",null,null,null,null,"педагог-психолог","учитель-логопед","учитель-дефектолог","соц. педагог"]
["1.","Ленинский район                                                                                                                                                                                           ","Муниципальное автономное дошкольное образовательное учреждение города Новосибирска \"Детский сад № 81 \"Дошкольная академия\"","Середа Олеся Владимировна","8 (383) 347-28-56","ds_81_nsk@nios.ru",1,1,0,0,2,5,0,0,5,5]
[null,null,"Муниципальное казенное дошкольное образовательное учреждение города Новосибирска \"Детский сад № 242 \"Елочка\" комбинированного вида\"","Голикова Виктория Александровна","8 (383) 351-31-35","ds_242_nsk@nios.ru",2,0,1,0,1,1,1,0,0,150]
[null,null,"Муниципальное казенное дошкольное образовательное учреждение города Новосибирска \"Детский сащд № 203 компенсирующего вида \"Радужка\"","Ларионова Оксана Викторовна","8 (383) 341-29-76","ds_203_nsk@nios.ru",1,1,0,0,0,2,4,0,6,28]
[null,null,"Муниципальное казеное дошкольное образовательное учреждение города Новосибирска \"Детский сад № 322 комбинированого вида\"","Сашова Ольга Ивановна","8 (383) 351-36-00","ds_322_nsk@nios.ru",1,1,0,0,1,1,1,0,0,1]
[null,null,"Муниципальное автономное  дошкольное образовательное учреждение города Новосибирска \"Детский сад № 298 комбинированного вида\"","Рязанцева Юлия Леонидовна","8 (383) 351-44-43","ds_298_nsk@nios.ru",0,0,0,0,1,2,0,0,3,73]
[null,null,"Муниципальное автономное дошкольное образовательное  учреждение города Новосибирска \"Детский сад № 472 \"Тигрёнок\"","Микурова Наталья Петровна","8 (383) 341-38-01","ds_472_nsk@nios.ru ",1,1,0,0,1,5,1,0,0,18]
[null,null,"Муниципальное казенное дошкольное образовательное учреждение города Новосибирска \"Детский сад № 238  комбинированного вида\"","Савиных Светлана Николаевна","8 (383) 340-22-30","ds_238_nsk@nios.ru",2,0,1,0,1,2,0,0,0,8]
[null,null,"Муниципальлное казенное дошкольное образовательное учреждение города Новосибирска \"Детский сад № 311 комписирующего вида\"","Бодрова Ирина Сагидовна","8 (383) 354-80-056","ds_311_nsk@nios.ru",1,1,1,0,0,0,3,0,3,1]
[null,null,"Муниципальное казенное дошкольное образовательное учреждение  города Новосибирска \"Детский сад №144 комбинированного вида \"Сказкоград\"","Полнова Анна Анатольевна","8 (383) 351-56-38","ds_144_nsr@nios.ru",1,1,1,0,1,2,0,0,3,25]
[null,null,"Муниципальное казенное дошкольное образовательное учреждение  города Новосибирска \"Детский сад № 323 комбинированного вида\" ","Каличенко Оксана Ивановна","8 (383) 341-42-24","ds_323_nsk@nios.ru",1,1,0,0,1,1,0,0,0,30]
[null,null,"Муниципальное казенноедошкольное образовательное учреждение  города Новосибирска \"Детский сад № 369 кобинированного вида\" ","Ионичева Светлана Николаевна","8 (383) 356-66-02","detsadik369@mail.ru ",1,1,1,0,1,6,1,0,30,295]
[null,null,"Муниципальное казенное дошкольное образовательное учреждение города Новосибирска \"Детский сад № 406 комбинированного вида\"","Литвиченко Светлана Александровна","8 (383) 351-68-67","ds_406_nsk@nios.ru",1,1,0,0,1,2,2,0,5,16]
[null,null,"Муниципальное бюджетное общеобразовательное учреждение города Новосибирска «Средняя общеобразовательная школа № 56»\n\n","Спецова Мария Алексеевна","8 (383) 351-31-02","s_56@edu54.ru",1,1,1,0,2,1,0,2,5,38]
[null,null,"муниципальное бюджетное общеобразовательное учреждение города Новосибирска \" Средняя общеобразовательная школа № 160\"","Медведева Валерия Анатольевна","8 (383) 351-57-46","sch_160_nsk@nios.ru ",2,0,1,0,2,1,1,2,1,444]
[null,null,"Итого",null,null,"кц",10,10,7,0,15,31,14,4,61,1132]
[null,null,null,null,null,"персп",3]

{"sheet":"НСК Октябрьский","index":10,"n_rows":8,"n_cols":16,"rows_kept":8,"cut":false,"hidden":false,"merged":[[1,8,2,8],[1,9,2,9],[1,10,1,13],[1,14,2,14],[1,15,2,15],[1,6,2,6],[1,7,2,7],[3,1,6,1],[1,0,2,0],[1,1,2,1],[1,2,2,2],[1,3,1,5]]}
["Ответственный",null,"Белякова Елена Сергеевна","Тел","228-82-99","e-mail","esbeliakova@admnsk.ru"]
["№","Муниципальный район/городской округ","ОО, оказывающие услуги (полное название по Уставу)","Руководитель ОО, оказывающей услуги",null,null,"Наличие статуса КЦ/КП по локальным документам ОО (0-нет, 1 - есть, 2-планируется)","Наличие Приказа о создании КЦ/ оказании услуг в ОО (0-нет, 1 - есть)","Наличие пункта в  Уставе ОО об оказании услуг (0 - нет, 1 - есть) ","Наличие муниципального/госу-дарственного задания  по оказанию  услуг (0 - нет, 1 - есть) ","Количество специалистов, оказывающих услуги",null,null,null,"Количество специалистов, прошедших КПК по вопросам оказания услуг","Количество услуг, оказанных в 2020 г."]
[null,null,null,"Ф.И.О.","телефон","e-mail",null,null,null,null,"педагог-психолог","учитель-логопед","учитель-дефектолог","соц. педагог"]
[null,"Октябрьский","Муниципальное бюджетное общеобразовательное учреждение города Новосибисрка \"Средняя общеобразовательная школа № 2\"","Орлова Н.А.","8(383)262-30-89","sch_2_nsk@nios.ru",2,0,0,0,0,1,0,1,0,27]
[null,null,"Муниципальное бюджетное общеобразовательное учреждение города Новосибирска \"Средняя общеобразовательная школа №32\"\n","Ширинская Л.М","8(383)266-72-45","sch_32_nsk@nios.ru",0,0,0,0,1,1,0,1,2,0]
[null,null,"Муниципальное бюджетное общеобразовательное учреждение города Новосибисрка \"Средняя общеобразовательная школа № 52\"","Мазин К.А.","8(383)260-02-11","sch_52_nsk@nios.ru ",0,0,0,0,1,1,0,2,2,28]
[null,null,"Муниципальное бюджетное общеобразовательное учреждение города Новосибисрка \"Средняя общеобразовательная школа № 76\"","Равлюк Надежда Николаевна","8(383)269-49-60","sch_76_nsk@nios.ru",0,0,0,0,1,1,0,0,0,0]
[null,null,"Итого",null,null,null,null,0,0,0,3,4,0,4,4,55]

{"sheet":"НСК Первомайский","index":11,"n_rows":65,"n_cols":16,"rows_kept":65,"cut":false,"hidden":false,"merged":[[46,10,54,10],[62,0,63,0],[62,1,63,1],[36,0,38,0],[36,1,38,1],[39,1,42,1],[43,1,45,1],[46,0,54,0],[46,1,54,1],[33,0,34,0],[33,1,34,1],[1,14,2,14],[1,15,2,15],[3,0,8,0],[3,1,8,1],[18,1,19,1],[23,0,24,0],[23,1,24,1],[26,0,27,0],[26,1,27,1],[26,7,27,7],[29,0,30,0],[29,1,30,1],[0,1,0,10],[1,0,2,0],[1,1,2,1],[1,2,2,2],[1,3,1,5],[1,6,2,6],[1,7,2,7],[1,8,2,8],[1,9,2,9],[1,10,1,13]]}
[null,"Перечень\nобразовательных организаций, оказывающих услуги консультативной, психолого-педагогической и методической помощи (далее - услуги) родителям (законным представителям) детей от 0 до 18 лет, а также гражданам, желающим принять на воспитание в свои семьи детей, оставшихся без попечения родителей, действующих на территории муниципальных образований Новосибирской области (далее - ОО, оказывающие услуги)\n"]
["№","Муниципальный район/городской округ","ОО, оказывающие услуги (полное название по Уставу)","Руководитель ОО, оказывающей услуги",null,null,"Наличие статуса КЦ/КП по локальным документам ОО (0-нет, 1 - есть, 2-планируется)","Наличие Приказа о создании КЦ/ оказании услуг в ОО (0-нет, 1 - есть)","Наличие пункта в  Уставе ОО об оказании услуг (0 - нет, 1 - есть) ","Наличие муниципального/госу-дарственного задания  по оказанию  услуг (0 - нет, 1 - есть) ","Количество специалистов, оказывающих услуги",null,null,null,"Количество специалистов, прошедших КПК по вопросам оказания услуг","Количество услуг, оказанных в 2020 г."]
[null,null,null,"Ф.И.О.","телефон","e-mail",null,null,null,null,"педагог-психолог","учитель-логопед","учитель-дефектолог","соц. педагог"]
["1.","Первомайский район","Муниципальное бюджетное общеобразовательное учреждениегорода Новосибирска«Средняя общеобразовательная школа № 147»","Садырина Ольга Анатольевна",3382527,"s_147@edu54.ru",2,0,0,0,2,1,0,1,1,183]
[null,null,"Муниципальное казенное общеобразовательное учреждениегорода Новосибирска«Специальная (коррекционная) школа № 148»","Трофимова Людмила Анатольевна",3054290,"sch_148nsk@nios.ru",0,0,0,0,2,1,0,1,1,456]
[null,null,"Муниципальное автономное общеобразовательное учреждение города Новосибирска\n«Средняя общеобразовательная школа № 213 \"Открытие\"»","Безукладникова Инна Викторовна",3493630,"s_213@edu54.ru",0,0,0,0,1,1,0,1,1,207]
[]
[]
[]
[null,null,"Итого",null,null,null,null,0,0,0,5,3,0,3,3,846]
[]
[]
[]
[]
[]
[]
[]
[]
[]
[]
[]
[]
[]
[]
[]
[]
[]
[]
[]
[]
[]
[]
[]
[]
[]
[]
[]
[]
[]
[]
[]
[]
[]
[]
[]
[]
[]
[]
[]
[]
[]
[]
[]
[]
[]
[]
[]
[]
[]
[]
[]
[]
[]
[]
[null,null,null,null,null,null,null,null,"."]

{"sheet":"НСК Советский","index":12,"n_rows":59,"n_cols":16,"rows_kept":59,"cut":false,"hidden":false,"merged":[[40,10,48,10],[56,0,57,0],[56,1,57,1],[30,0,32,0],[30,1,32,1],[33,1,36,1],[37,1,39,1],[40,0,48,0],[40,1,48,1],[27,0,28,0],[27,1,28,1],[1,14,2,14],[1,15,2,15],[12,1,13,1],[17,0,18,0],[17,1,18,1],[20,0,21,0],[20,1,21,1],[20,7,21,7],[23,0,24,0],[23,1,24,1],[0,1,0,10],[1,0,2,0],[1,1,2,1],[1,2,2,2],[1,3,1,5],[1,6,2,6],[1,7,2,7],[1,8,2,8],[1,9,2,9],[1,10,1,13]]}
[null,"Перечень\nобразовательных организаций, оказывающих услуги консультативной, психолого-педагогической и методической помощи (далее - услуги) родителям (законным представителям) детей от 0 до 18 лет, а также гражданам, желающим принять на воспитание в свои семьи детей, оставшихся без попечения родителей, действующих на территории муниципальных образований Новосибирской области (далее - ОО, оказывающие услуги)\n"]
["№","Муниципальный район/городской округ","ОО, оказывающие услуги (полное название по Уставу)","Руководитель ОО, оказывающей услуги",null,null,"Наличие статуса КЦ/КП по локальным документам ОО (0-нет, 1 - есть, 2-планируется)","Наличие Приказа о создании КЦ/ оказании услуг в ОО (0-нет, 1 - есть)","Наличие пункта в  Уставе ОО об оказании услуг (0 - нет, 1 - есть) ","Наличие муниципального/госу-дарственного задания  по оказанию  услуг (0 - нет, 1 - есть) ","Количество специалистов, оказывающих услуги",null,null,null,"Количество специалистов, прошедших КПК по вопросам оказания услуг","Количество услуг, оказанных в 2020 г."]
[null,null,null,"Ф.И.О.","телефон","e-mail",null,null,null,null,"педагог-психолог","учитель-логопед","учитель-дефектолог","соц. педагог"]
[null,null,"Итого"]
[]
[]
[]
[]
[]
[]
[]
[]
[]
[]
[]
[]
[]
[]
[]
[]
[]
[]
[]
[]
[]
[]
[]
[]
[]
[]
[]
[]
[]
[]
[]
[]
[]
[]
[]
[]
[]
[]
[]
[]
[]
[]
[]
[]
[]
[]
[]
[]
[]
[]
[]
[]
[]
[]
[null,null,null,null,null,null,null,null,"."]

{"sheet":"НСК Центральный р-н","index":13,"n_rows":5,"n_cols":16,"rows_kept":5,"cut":false,"hidden":false,"merged":[[1,10,2,13]]}
["Ответственный",null,"Шакунова Наталья Юрьевна","Тел",89139436062,"e-mail","Nshekunova@admnsk.ru"]
["№","Муниципальный район/городской округ","ОО, оказывающие услуги (полное название по Уставу)","Руководитель ОО, оказывающей услуги","телефон","e-mail","Наличие статуса КЦ/КП по локальным документам ОО (0-нет, 1 - есть, 2-планируется)","Наличие Приказа о создании КЦ/ оказании услуг в ОО (0-нет, 1 - есть)","Наличие пункта в  Уставе ОО об оказании услуг (0 - нет, 1 - есть) ","Наличие муниципального/госу-дарственного задания  по оказанию  услуг (0 - нет, 1 - есть) ","Количество специалистов, оказывающих услуги",null,null,null,"Количество специалистов, прошедших КПК по вопросам оказания услуг","Количество услуг, оказанных в 2020 г."]
[null,null,null,"Ф.И.О."]
["1.","Центральный округ","муниципальное казенное общеобразовательное учреждение  города Новосибирска \"Специальная (коррекционная) школа № 209\"","Крутицкая Наталья Васильевна","8(383)225-88-05","sch_209_nsk@nios.ru",1,1,0,0,1,1,1,1,4,120]
[null,null,"Итого",null,null,null,1,1,0,0,1,1,1,1,4,120]

{"sheet":"Доволенский р-н","index":14,"n_rows":9,"n_cols":16,"rows_kept":9,"cut":false,"hidden":false,"merged":[[1,14,2,14],[1,15,2,15],[3,0,8,0],[3,1,8,1],[1,0,2,0],[1,1,2,1],[1,2,2,2],[1,3,1,5],[1,6,2,6],[1,7,2,7],[1,8,2,8],[1,9,2,9],[1,10,1,13]]}
["Ответственный",null,"Ковальчук Елена Николаевна","Тел","8(383)54 20314","e-mail","kovalchuken@edu54.ru "]
["№","Муниципальный район/городской округ","ОО, оказывающие услуги (полное название по Уставу)","Руководитель ОО, оказывающей услуги",null,null,"Наличие статуса КЦ/КП по локальным документам ОО (0-нет, 1 - есть, 2-планируется)","Наличие Приказа о создании КЦ/ оказании услуг в ОО (0-нет, 1 - есть)","Наличие пункта в  Уставе ОО об оказании услуг (0 - нет, 1 - есть) ","Наличие муниципального/госу-дарственного задания  по оказанию  услуг (0 - нет, 1 - есть) ","Количество специалистов, оказывающих услуги",null,null,null,"Количество специалистов, прошедших КПК по вопросам оказания услуг","Количество услуг, оказанных в 2020 г."]
[null,null,null,"Ф.И.О.","телефон","e-mail",null,null,null,null,"педагог-психолог","учитель-логопед","учитель-дефектолог","соц. педагог"]
["1.","Доволенский","Муниципальное казенное общеобразовательное учреждение Доволенская средняя общеобразовательная школа № 1","Кобзистова Ирина Викторовна",83835420339,"s_1_dov@edu54.ru",0,0,0,0,1,1,0,1,0,0]
[null,null,"Муниципальное казенное общеобразовательное учреждение Доволенская средняя общеобразовательная школа № 2 им.С.И.Лазарева","Давыдова Елена Алексеевна","8 383 54 20365","s_2_dov@edu54.ru ",0,0,0,0,1,1,0,0,0,0]
[null,null,"Муниципальное казенное общеобразовательное учреждение Доволенская основная общеобразовательная школа","Шкуратова Любовь Сергеевна",83835420672,"s_dov_dov@edu54.ru",0,0,0,0,1,1,0,0,0,0]
[null,null,"Муниципальное казенное дошкольное образовательное учреждение Доволенский детский сад №2","Едутова Ирина Евгеньевна",83835421339,"Detidov@yandex.ru ",0,0,0,0,1,1,0,0,0,0]
[null,null,"Муниципальное казенное дошкольное образовательное учреждение Доволенский детский сад № 3","Лопатина Людмила Николаевна",83835421767,"dovdetsad-3@rambler.ru",0,0,0,0,1,1,0,0,0,0]
[null,null,"Итого",null,null,null,null,0,0,0,5,5,0,1,0,0]

{"sheet":"Здвинский р-н","index":15,"n_rows":11,"n_cols":16,"rows_kept":11,"cut":false,"hidden":false,"merged":[[1,14,2,14],[1,15,2,15],[3,0,8,0],[3,1,8,1],[1,0,2,0],[1,1,2,1],[1,2,2,2],[1,3,1,5],[1,6,2,6],[1,7,2,7],[1,8,2,8],[1,9,2,9],[1,10,1,13]]}
["Ответственный",null,"Канеева\nЮлия Сергеевна\n","Тел","8(383)63-21-707","e-mail","ysk-uo@mail.ru"]
["№","Муниципальный район/городской округ","ОО, оказывающие услуги (полное название по Уставу)","Руководитель ОО, оказывающей услуги",null,null,"Наличие статуса КЦ/КП по локальным документам ОО","Наличие Приказа о создании КЦ/ оказании услуг в ОО","Наличие пункта в  Уставе ОО об оказании услуг ","Наличие муниципального/госу-дарственного задания  по оказанию  услуг ","Количество специалистов, оказывающих услуги",null,null,null,"Количество специалистов, прошедших КПК по вопросам оказания услуг","Количество услуг, оказанных в 2020 г."]
[null,null,null,"Ф.И.О.","телефон","e-mail",null,null,null,null,"педагог-психолог","учитель-логопед","учитель-дефектолог","соц. педагог"]
["1.","Здвинский район","муниципальное казенное дошкольное образовательное учреждение Здвинский детский сад \"Светлячок\" комбинированного вида","Саланова Любовь Владимировна","8(383)63 21-687","ds.glowworm@yandex.ru",1,1,1,0,1,1,0,0,1,46]
[null,null,"муниципальное казенное дошкольное образовательное учреждение Здвинский  детский сад \"Солнышко\"общеразвивающего вида","Липеева Оксана Валерьевна","8(383)63 21-591","super-det-sad@mail.ru  ",2,0,1,0,1,1,0,0,2,4]
[null,null,"муниципальное казенное дошкольное образовательное учреждение Нижнечулымский детский сад \"Ромашка\"","Сапелкина Ольга Алексеевна","8(383)6337-136","dromaska@mail.ru",0,0,1,0,1,0,0,0,0,3]
[null,null,"муниципальное казенное дошкольное образовательное учреждение Верх-Каргатский детский сад \"Колосок\"","Хмелёва Надежда Андреевна","8(383)63 39-266","detsad-kolosok@mail.ru  ",0,0,1,0,1,0,0,0,0,1]
[null,null,"муниципальное казенное общеобразовательное учреждение Здвинская средняя общеобразовательная школа № 1","Останина Наталья Алексеевна","8(383)6321949","zdvin1_soch@mail.ru",0,0,1,0,1,1,0,1,0,196]
[null,null,"муниципальное казенное общеобразовательное учреждение Сарыбалыкская средняя общеобразовательная школа ","Свояк Алла Александдровна","8(383)6338230","sar_soch@mail.ru",0,0,1,0,1,1,0,1,0,60]
[null,null,"Итого",null,null,"КЦ",1,1,6,0,6,4,0,2,3,310]
[null,null,null,null,null,"перспект",1]

{"sheet":"г. Искитим","index":16,"n_rows":37,"n_cols":16,"rows_kept":37,"cut":false,"hidden":false,"merged":[[1,9,2,9],[1,10,1,13],[1,14,2,14],[1,15,2,15],[1,1,2,1],[1,2,2,2],[1,3,1,5],[1,6,2,6],[1,7,2,7],[1,8,2,8]]}
["Ответственный",null,"Кунгурцева Елена Алексеевна","Тел",89059539301,"e-mail","elenak-isk@mail.ru"]
[null,"№","ОО, оказывающие услуги (полное название по Уставу)","Руководитель ОО, оказывающей услуги",null,null,"Наличие статуса КЦ/КП по локальным документам ОО","Наличие Приказа о создании КЦ/ оказании услуг в ОО","Наличие пункта в  Уставе ОО об оказании услуг ","Наличие муниципального/госу-дарственного задания  по оказанию  услуг ","Количество специалистов, оказывающих услуги",null,null,null,"Количество специалистов, прошедших КПК по вопросам оказания услуг","Количество услуг, оказанных в 2020 г."]
[null,null,null,"Ф.И.О.","телефон","e-mail",null,null,null,null,"педагог-психолог","учитель-логопед","учитель-дефектолог","соц. педагог"]
[null,"1.","муниципальное бюджетное дошкольное образовательное учреждение детский сад № 3 «Дюймовочка» комбинированного вида города Искитима Новосибирской области","Корбатова Светлана анатольевна","8 (383-43) 2-46-21","duimovochka3isk@mail.ru",0,1,0,0,1,1,0,0,0,26]
[null,"2.","муниципальное бюджетное дошкольное образовательное учреждение детский сад № 4 «Теремок» комбинированного вида города Искитима Новосибирской области","Батан Татьяна Федоровна","8 (38343) 2-32-01","nso_teremok@mail.ru",0,1,0,0,0,2,0,0,0,31]
[null,"3.","муниципальное бюджетное дошкольное образовательное учреждение детский сад № 5 «Золотой ключик» города Искитима Новосибирской области","Чернослив Оксана Сергеевна","8(38343) 2-35-91","mbdou.5@mail.ru",0,1,0,0,0,1,0,0,0,22]
[null,"4.","муниципальное бюджетное дошкольное образовательное учреждение детский сад № 9 «Незабудка» города Искитима Новосибирской области","Кетова Людмила Владимировна","8(38343)2-33-04","dou.nezabudka@yandex.ru",0,1,null,null,0,0,0,0,0,32]
[null,"5.","муниципальное бюджетное дошкольное образовательное учреждение детский сад № 10 «Ручеек» комбинированного вида города Искитима Новосибирской области","Каримова Лариса Юрьевна","(8-383-43) 3-68-57","ds.rucheek@yandex.ru",0,1,0,0,1,3,0,0,0,26]
[null,"6.","муниципальное бюджетное дошкольное образовательное учреждение детский сад № 12 «Берёзка» комбинированного вида города Искитима Новосибирской области","Мельникова Жанна Николаевна","8(383-43)2-46-23","mbdou.12@mail.ru ",0,1,0,0,0,2,1,0,0,43]
[null,"7.","муниципальное бюджетное дошкольное образовательное учреждение детский сад № 16 «Солнышко» комбинированного вида города Искитима Новосибирской области","Митина Марина Геннадьевна","8(383-43) 3-59-85","colnisko_iskitim@mail.ru",0,1,0,0,1,2,0,0,0,35]
[null,"8.","муниципальное бюджетное дошкольное образовательное учреждение детский сад № 17 «Огонек» комбинированного вида города Искитима Новосибирской области","Филиппова Елена Анатольевна","8(383-43)2-47-65","mdou17.g-isk@mail.ru  ",0,1,0,0,0,1,0,0,0,20]
[null,"9.","муниципальное бюджетное дошкольное образовательное учреждение детский сад № 19 «Золотая рыбка» комбинированного вида города Искитима Новосибирской области","Асанова Юлия Владимировна","8(383-43)4-42-29","yuliya-baidrakov@mail.ru",0,1,0,0,1,2,0,0,3,43]
[null,"10.","муниципальное бюджетное дошкольное образовательное учреждение детский сад № 20 «Орленок» города Искитима Новосибирской области","Травкина Ольга Юрьевна","8(38343)2-08-40","oiskitim@mail.ru",0,1,0,0,0,0,0,0,0,15]
[null,"11.","муниципальное бюджетное дошкольное образовательное учреждение детский сад № 21 «Колокольчик» комбинированного вида города Искитима Новосибирской области","Самойленко Оксана Владимировна","8(38343)2-27-48","kolokolchik_nso21@mail.ru",0,1,0,0,1,3,0,0,0,24]
[null,"12.","муниципальное бюджетное дошкольное образовательное учреждение детский сад № 22 «Родничок» комбинированного вида города Искитима Новосибирской области","Гергерт Светлана Николаевна","8(38343)2-58-80","rodnichisk@mail.ru",0,1,0,0,1,2,0,0,0,76]
[null,"13.","муниципальное автономное дошкольное образовательное учреждение «Детский сад компенсирующего вида № 23 «Дельфинчик» города Искитима Новосибирской области","Казакова Оксана Анатольевна","8(383-43)49-068","delfin_isk@mail.ru",0,1,1,0,1,2,2,0,6,324]
[null,"14.","муниципальное автономное дошкольное образовательное учреждение детский сад № 24 «Журавушка» комбинированного вида города Искитима Новосибирской области","Оводова Юлия Николаевна","8(383-43)20-005","madou24-isk@mail.ru",0,0,1,1,1,3,0,0,4,21]
[null,"15.","муниципальное бюджетное дошкольное образовательное учреждение детский сад № 25 «Медвежонок» комбинированного вида города Искитима Новосибирской области","Люхно Татьяна Николаевна","8(383)43 28545","dou25_isk@mail.ru",0,1,0,0,1,2,0,0,3,25]
[null,"16.","муниципальное бюджетное дошкольное образовательное учреждение детский сад № 26 «Сказка» комбинированного вида города Искитима Новосибирской области","Cлободчикова Оксана Анатольевна","8(383 -43) 2-60-46","skazka_nso@mail.ru",0,1,1,0,1,2,1,0,0,20]
[null,"17.","муниципальное бюджетное дошкольное образовательное учреждение детский сад № 27 «Росинка» комбинированного вида города Искитима Новосибирской области","Мартынова Елена Александровна","8(383-43) 2-51-14","27rosinka@mail.ru",0,1,0,0,0,2,0,0,0,23]
[null,"18.","муниципальное бюджетное общеобразовательное учреждение – средняя общеобразовательная школа № 1 с углубленным изучением отдельных предметов города Искитима Новосибирской области","Пилипушка Сергей Влладимирович ","8(38343)2-08-50","school_n1@mail.ru",0,0,0,0,1,null,0,1,1,158]
[null,"19.","муниципальное бюджетное общеобразовательное учреждение – средняя общеобразовательная школа № 2 города Искитима Новосибирской области","Рыбцев Алексей Александрович","8 (38343)  2-36-40","schol2@mail.ru",0,0,0,0,1,1,0,1,2,188]
[null,"20.","муниципальное бюджетное общеобразовательное учреждение – средняя общеобразовательная школа № 3 города Искитима Новосибирской области","Телкова Наталья Александровна","8 (38343) 2-23-28","isk_sh3@mail.ru",null,0,0,0,1,1,0,1,null,122]
[null,"21.","муниципальное автономное общеобразовательное учреждение – средняя общеобразовательная школа № 4 города Искитима Новосибирской области","Коренькова Наталья Леонидовна","8 (38343) 37265","isksch4@ngs.ru",0,1,0,0,1,1,0,1,0,156]
[null,"22.","муниципальное бюджетное общеобразовательное учреждение – средняя общеобразовательная школа № 5 города Искитима Новосибирской области","Пихтарева Ирина Ивановна","8(38343) 2-48-05","shool5@mail.ru",0,1,1,0,1,0,0,1,0,135]
[null,"23.","муниципальное бюджетное общеобразовательное учреждение – основная общеобразовательная школа № 6 города Искитима Новосибирской области","Бочкарев  Владимир Алексеевич","8-383-43-234-62","iskschool6mail.ru",null,1,0,1,1,0,0,1,0,62]
[null,"24.","муниципальное казенное общеобразовательное учреждение  города Искитима Новосибирской области «Коррекционная школа № 7»","Саможенов Сергей Николаевич","8-383-43-216-58","iskskosh7@mail.ru",0,1,0,0,1,3,0,1,1,130]
[null,"25.","муниципальное бюджетное общеобразовательное учреждение – средняя общеобразовательная школа № 8 города Искитима Новосибирской области","Воробьева Нона Яковлевна","8-383-43-2-86-95","schoool8@yandex.ru",0,1,1,0,2,1,0,1,3,154]
[null,"26.","муниципальное автономное общеобразовательное учреждение – средняя общеобразовательная школа № 9 города Искитима Новосибирской области","Коломникова Светлана Викторовна","8-383-43-441-42","iskschol9@mail.ru      ",0,0,0,0,1,1,0,1,2,122]
[null,"27.","муниципальное бюджетное общеобразовательное учреждение – основная общеобразовательная школа № 10 города Искитима Новосибирской области","Буйских Вера Андреевна","8-383-43-453-59","hkiskitim_10@mail.ru",0,1,0,0,1,0,0,1,0,46]
[null,"28.","муниципальное бюджетное общеобразовательное учреждение – средняя общеобразовательная школа № 11 города Искитима Новосибирской области","Бучнева Лариса Николаевна","8-383-43-4-41-47","school1105@mail.ru",0,1,1,0,1,1,0,1,0,167]
[null,"29.","муниципальное автономное общеобразовательное учреждение города Искитима Новосибирской области  «Коррекционная школа-интернат № 12»","Дюкова Ольга Леонидовна",89133863499,"a_olga_72@mail.ru",0,1,0,0,2,1,1,1,0,125]
[null,"30.","муниципальное бюджетное общеобразовательное учреждение – средняя общеобразовательная школа № 14 города Искитима Новосибирской области","Степаненко Ольга Николаевна",89538608431,"nkiskitim_14@mail.ru",0,1,0,0,1,1,0,1,1,123]
[null,"31.","муниципальное  бюджетное общеобразовательное  учреждение  -  открытая  (сменная) общеобразовательная  школа  № 1  города  Искитима  Новосибирской  области","Лесина Ольга Викторовна","8(383-43) 2-32-34","sm_1_iskitim@edu54.ru",0,1,0,0,1,0,0,1,0,32]
[null,null,"Итого",null,null,null,null,26,6,2,26,41,5,14,26,2526]
[]
[null,null,null,null,null,null,null,null,null,null,null,null,null,null,null,{"$f":"SUM(P4:P34)","v":2526}]

{"sheet":"Искитисмский р-н","index":17,"n_rows":78,"n_cols":16,"rows_kept":78,"cut":false,"hidden":false,"merged":[[73,10,76,10],[73,11,76,11],[73,12,76,12],[73,13,76,13],[73,14,76,14],[73,15,76,15],[69,14,72,14],[69,15,72,15],[73,2,76,2],[73,3,76,3],[73,4,76,4],[73,5,76,5],[73,6,76,6],[73,7,76,7],[73,8,76,8],[73,9,76,9],[69,8,72,8],[69,9,72,9],[69,10,72,10],[69,11,72,11],[69,12,72,12],[69,13,72,13],[69,2,72,2],[69,3,72,3],[69,4,72,4],[69,5,72,5],[69,6,72,6],[69,7,72,7],[65,10,68,10],[65,11,68,11],[65,12,68,12],[65,13,68,13],[65,14,68,14],[65,15,68,15],[61,14,64,14],[61,15,64,15],[65,2,68,2],[65,3,68,3],[65,4,68,4],[65,5,68,5],[65,6,68,6],[65,7,68,7],[65,8,68,8],[65,9,68,9],[61,8,64,8],[61,9,64,9],[61,10,64,10],[61,11,64,11],[61,12,64,12],[61,13,64,13],[61,2,64,2],[61,3,64,3],[61,4,64,4],[61,5,64,5],[61,6,64,6],[61,7,64,7],[57,10,60,10],[57,11,60,11],[57,12,60,12],[57,13,60,13],[57,14,60,14],[57,15,60,15],[53,14,56,14],[53,15,56,15],[57,2,60,2],[57,3,60,3],[57,4,60,4],[57,5,60,5],[57,6,60,6],[57,7,60,7],[57,8,60,8],[57,9,60,9],[53,8,56,8],[53,9,56,9],[53,10,56,10],[53,11,56,11],[53,12,56,12],[53,13,56,13],[53,2,56,2],[53,3,56,3],[53,4,56,4],[53,5,56,5],[53,6,56,6],[53,7,56,7],[49,10,52,10],[49,11,52,11],[49,12,52,12],[49,13,52,13],[49,14,52,14],[49,15,52,15],[45,14,48,14],[45,15,48,15],[49,2,52,2],[49,3,52,3],[49,4,52,4],[49,5,52,5],[49,6,52,6],[49,7,52,7],[49,8,52,8],[49,9,52,9],[45,8,48,8],[45,9,48,9],[45,10,48,10],[45,11,48,11],[45,12,48,12],[45,13,48,13],[45,2,48,2],[45,3,48,3],[45,4,48,4],[45,5,48,5],[45,6,48,6],[45,7,48,7],[41,10,44,10],[41,11,44,11],[41,12,44,12],[41,13,44,13],[41,14,44,14],[41,15,44,15],[37,14,40,14],[37,15,40,15],[41,2,44,2],[41,3,44,3],[41,4,44,4],[41,5,44,5],[41,6,44,6],[41,7,44,7],[41,8,44,8],[41,9,44,9],[37,8,40,8],[37,9,40,9],[37,10,40,10],[37,11,40,11],[37,12,40,12],[37,13,40,13],[37,2,40,2],[37,3,40,3],[37,4,40,4],[37,5,40,5],[37,6,40,6],[37,7,40,7],[33,10,36,10],[33,11,36,11],[33,12,36,12],[33,13,36,13],[33,14,36,14],[33,15,36,15],[28,14,32,14],[28,15,32,15],[33,2,36,2],[33,3,36,3],[33,4,36,4],[33,5,36,5],[33,6,36,6],[33,7,36,7],[33,8,36,8],[33,9,36,9],[28,8,32,8],[28,9,32,9],[28,10,32,10],[28,11,32,11],[28,12,32,12],[28,13,32,13],[28,2,32,2],[28,3,32,3],[28,4,32,4],[28,5,32,5],[28,6,32,6],[28,7,32,7],[24,10,27,10],[24,11,27,11],[24,12,27,12],[24,13,27,13],[24,14,27,14],[24,15,27,15],[20,14,23,14],[20,15,23,15],[24,2,27,2],[24,3,27,3],[24,4,27,4],[24,5,27,5],[24,6,27,6],[24,7,27,7],[24,8,27,8],[24,9,27,9],[20,8,23,8],[20,9,23,9],[20,10,23,10],[20,11,23,11],[20,12,23,12],[20,13,23,13],[20,2,23,2],[20,3,23,3],[20,4,23,4],[20,5,23,5],[20,6,23,6],[20,7,23,7],[16,10,19,10],[16,11,19,11],[16,12,19,12],[16,13,19,13],[16,14,19,14],[16,15,19,15],[12,14,15,14],[12,15,15,15],[12,10,15,10],[12,11,15,11],[12,12,15,12],[12,13,15,13],[16,2,19,2],[16,3,19,3],[16,4,19,4],[16,5,19,5],[16,6,19,6],[16,7,19,7],[16,8,19,8],[16,9,19,9],[12,8,15,8],[12,9,15,9],[12,2,15,2],[12,3,15,3],[12,4,15,4],[12,5,15,5],[12,6,15,6],[12,7,15,7],[8,8,11,8],[8,9,11,9],[3,8,7,8],[3,9,7,9],[3,10,7,10],[3,11,7,11],[3,12,7,12],[3,13,7,13],[3,2,7,2],[3,3,7,3],[3,4,7,4],[3,5,7,5],[3,6,7,6],[1,14,2,14],[1,15,2,15],[3,7,7,7],[8,10,11,10],[8,11,11,11],[8,12,11,12],[1,2,2,2],[1,3,1,5],[1,6,2,6],[1,7,2,7],[1,8,2,8],[1,9,2,9],[1,10,1,13],[8,13,11,13],[8,14,11,14],[8,15,11,15],[3,14,7,14],[3,15,7,15],[8,2,11,2],[8,3,11,3],[8,4,11,4],[8,5,11,5],[8,6,11,6],[8,7,11,7]]}
["Ответственный",null,"Кривошеева Людмила Васильевна","Тел","8(913)7150151","e-mail","edu-kolzovo@yandex.ru"]
["№","Муниципальный район/городской округ","ОО, оказывающие услуги (полное название по Уставу)","Руководитель ОО, оказывающей услуги",null,null,"Наличие статуса КЦ/КП по локальным документам ОО (0-нет, 1 - есть, 2-планируется)","Наличие Приказа о создании КЦ/ оказании услуг в ОО (0-нет, 1 - есть)","Наличие пункта в  Уставе ОО об оказании услуг (0 - нет, 1 - есть) ","Наличие муниципального/госу-дарственного задания  по оказанию  услуг (0 - нет, 1 - есть) ","Количество специалистов, оказывающих услуги",null,null,null,"Количество специалистов, прошедших КПК по вопросам оказания услуг","Количество услуг, оказанных в 2020 г."]
[null,null,null,"Ф.И.О.","телефон","e-mail",null,null,null,null,"педагог-психолог","учитель-логопед","учитель-дефектолог","соц. педагог"]
["1.","Искитимский район","1. Муниципальное казенное дошкольное учреждения Искитимского района Новосибирской области детский сад «Теремок» п. Керамкомбинат","Баева Наталья Владимировна","8(38343)71-148","teremok_ksm@mail.ru ",0,1,1,0,0,0,0,0,0,35]
[]
[]
[]
[]
[null,null,"2. Муниципальное бюджетное общеобразовательное учреждение \"Средняя общеобразовательная школа п. Листвянский\" ","Баля Яна Валерьевна","8(383-43)38520","listvianka-s@yandex.ru",0,1,1,1,1,1,0,1,0,94]
[]
[]
[]
[null,null,"3.Муниципальное казенное дошкольное образовательное учреждение Искитимского района Новосибирской области детский сад \"Огонек\" р.п. Линево","Долгополова Марина Викторовна","8 (383) 43 41 202","mdou_ogonek86@mail.ru",1,1,1,0,1,2,0,0,3,73]
[]
[]
[]
[null,null,"4.Муниципальное бюджетное общеобразовательное учреждение \"Средняя общеобразовательная школа п.Керамкомбинат\"","Вязовая Марина Васильевна",89537822180,"marina.vyazovaya.82@mail.ru",2,0,1,0,1,0,0,0,0,68]
[]
[]
[]
[null,null,"5.Муниципальное бюджетное общеобразовательное учреждение \"Средняя общеобразовательная школа ст. Евсино\"","Денего Евгения Александровна","383-43-2-44-80","http://evsin.ucoz.ru/",0,0,1,1,1,1,1,1,1,174]
[]
[]
[]
[null,null,"6.Муниципальное казенное общеобразовательное учреждение \"Линевская школа-интернат для обучающихся с ограниченными возможностями здоровья\" ","Габова Елена Анатольевна","8(383-43)3-38-12","rostok_linevo@mail.ru",0,0,0,0,1,2,1,1,5,50]
[]
[]
[]
[null,null,"7.Муниципальное казенное дошкольное образовательное учреждение Искитимского района Новосибирской области детский сад комбинированного вида «Родничок» р.п. Линево","Сидоркина Олеся Петровна","8-383-43-3-38-68","rodnichok21_80@mail.ru",1,1,1,0,1,3,0,0,4,53]
[]
[]
[]
[]
[null,null,"8.Муниципальное казённое дошкольное образовательное учреждение Искитимского района Новосибирской области детский сад «Родничок» с. Лебедёвка","Кононенко Людмила Ивановна","83834351-032","lebedevka.ds@mail.ru",1,1,1,0,1,1,0,0,1,18]
[]
[]
[]
[null,null,"9.Муниципальное бюджетное общеобразовательное учреждение \"Средняя общеобразовательная школа  № 1 р.п.Линево им.Ф.И.Кулиша\"","Огнева Е.С",89529109347,"elenka.ogneva.80@mail.ru",1,1,1,1,1,1,1,1,1,124]
[]
[]
[]
[null,null,"10.Муниципальное бюджетное общеобразовательное учреждение \"Средняя общеобразовательная школа  с. Лебедёвка\"","Рогова Галина Степановна","8(38343)51201","lebedebka@bk.ru ",1,1,0,1,1,1,0,1,1,78]
[]
[]
[]
[null,null,"11. Муниципальное бюджетное общеобразовательное учреждение «Средняя общеобразовательная школа №4 р.п. Линево» ","Гуляева Т.Ю","8(38343)41949","linevoshool4@mail.ru",0,0,1,0,2,1,0,1,3,170]
[]
[]
[]
[null,null,"12. Муниципальное бюджетное общеобразовательное учреждение \"Гимназия №1 Искитимского района\" р.п. Линево Новосибирской области","Лотфуллина Ильгиза Рафаиловна","8-383-43-3-13-47","gimnazia1-s@yandex.ru",0,1,1,1,1,1,1,0,1,120]
[]
[]
[]
[null,null,"13. Муниципальное казенное дошкольное образовательное учреждение детский сад \"Светлячок\" ст. Евсино Искитимского района Новосибирской области","Шпедт Ольга Григорьевна",83834378288,"svetlyachoc@ngs.ru",1,1,1,0,1,1,0,0,0,20]
[]
[]
[]
[null,null,"14. Муниципальное казенное дошкольное образовательное учреждение Искитимского района Новосибирской области детский сад \"Сибирячок\" п.Листвянский","Дулейкина Елена Михайловна","8(383-43)38-489","sibiryachok2015@mail.ru",1,1,1,0,1,1,0,0,0,30]
[]
[]
[]
[null,null,"15. Муниципальное бюджетное общеобразовательное учреждение\" Средняя общеобразовательная школа №3 р.п. Линево\"","Семенова Т.А.",83834330265,"shcola-3@yandex.ru",0,0,1,1,2,1,0,1,2,145]
[]
[]
[]
[null,null,"16. Муниципальное казенное дошкольное образовательное учреждение детский сад  комбинированного вида \"Красная шапочка\" р.п. Линево Искитимского района Новосибирской области","Мельникова Г.В.",83834333821,"shapochka-linevo@mail.ru",0,0,1,0,1,1,0,0,0,37]
[]
[]
[]
[null,null,"17. Муниципальное бюджетное общеобразовательное учреждение \"Средняя общеобразовательная школа п. Агролес\"","Сумская И.Н.","8 (383-41) 58918","agroles-s@yandex.ru",0,0,1,1,1,1,1,1,0,112]
[]
[]
[]
[null,null,"18. Муниципальное казенное дошкольное образовательное учреждение Искитимского района Новосибирской области детский сад \"Жаворонок\" р. п. Линево","Кузьмина А.Н.",83834339205,"Gavoronok@mail.ru ",0,0,1,0,0,1,0,0,0,29]
[]
[]
[]
[null,null,"Итого",null,null,null,7,10,16,7,18,20,5,8,22,1430]

{"sheet":"Карасукский р-н","index":18,"n_rows":33,"n_cols":16,"rows_kept":33,"cut":false,"hidden":false,"merged":[[1,14,2,14],[1,15,2,15],[3,1,31,1],[6,0,31,0],[1,0,2,0],[1,1,2,1],[1,2,2,2],[1,3,1,5],[1,6,2,6],[1,7,2,7],[1,8,2,8],[1,9,2,9],[1,10,1,13]]}
["Ответственный",null,"Тур Татьяна Владимировна","Тел",89537891304,"e-mail","tur.tatiana2016@mail.ru"]
["№","Муниципальный район/городской округ","ОО, оказывающие услуги (полное название по Уставу)","Руководитель ОО, оказывающей услуги",null,null,"Наличие статуса КЦ/КП по локальным документам ОО (0-нет, 1 - есть, 2-планируется)","Наличие Приказа о создании КЦ/ оказании услуг в ОО (0-нет, 1 - есть)","Наличие пункта в  Уставе ОО об оказании услуг (0 - нет, 1 - есть) ","Наличие муниципального/госу-дарственного задания  по оказанию  услуг (0 - нет, 1 - есть) ","Количество специалистов, оказывающих услуги",null,null,null,"Количество специалистов, прошедших КПК по вопросам оказания услуг","Количество услуг, оказанных в 2020 г."]
[null,null,null,"Ф.И.О.","телефон","e-mail",null,null,null,null,"педагог-психолог","учитель-логопед","учитель-дефектолог","соц. педагог"]
[1,"Карасукский район","Муниципальное бюджетное общеобразовательное учреждение гимназия №1 имени Героя Советского Союза В.Н.Тимонова Карасукского района Новосибирской области","Доме Любовь Алексеевна","8(383)5533788","1gimnasia@mail.ru",0,0,0,0,1,1,0,1,2,4]
[2,null,"Муниципальное бюджетное общеобразовательное учреждение средняя общеобразовательная школа №2 Карасукского района Новосибирской области","Загарюк Павел Васильевич","8(383)5521240","mousosch2karasuk@mail.ru",0,0,0,0,1,1,0,1,3,45]
[3,null,"Муниципальное бюджетное общеобразовательное учреждение средняя общеобразовательная школа №3 Карасукского района Новосибирской области","Юнг Александр Павлович","8(383)5533343","shkola3.09@mail.ru",0,0,0,0,1,1,0,1,3,35]
[4,null,"Муниципальное бюджетное общеобразовательное учреждение средняя общеобразовательная школа №5 Карасукского района","Беланюк Елена Михайловна","8(383)5536033","kar.soh5@mail.ru",0,0,0,0,2,1,0,1,0,304]
[null,null,"Муниципальное бюджетное общеобразовательное учреждение технический лицей №176 Карасукского района","Кривушев Сергей Александрович","8(383)5532022","licei_176@mail.ru",0,0,0,0,1,1,0,1,2,41]
[null,null,"Муниципальное бюджетное общеобразовательное учреждение основная общеобразовательная школа №4 Карасукского района","Величко Ольга Юрьевна","8(383)5535931","shcoola-1@yandex.ru",0,0,0,0,1,1,0,1,3,87]
[null,null,"Муниципальное бюджетное общеобразовательное учреждение Александровская средняя общеобразовательная школа","Харлашин Анатолий  Алексеевич","8(383)5556572","moualekssosh@mail.ru",0,0,0,0,1,1,0,1,1,9]
[null,null,"Муниципальное бюджетное общеобразовательное учреждение Благодатская средняя общеобразовательная школа ","Гаврик Вадим Владимирович","8(383)5540316","blagkar@mail.ru",0,0,0,0,1,1,0,1,1,10]
[null,null,"Муниципальное бюджетное общеобразовательное учреждение Ирбизинская средняя общеобразовательная школа","Абрамушкин Александр Анатольевич","8(383)5542141","mouirbizino54@mail.ru",0,0,0,0,1,1,0,1,2,28]
[null,null,"Муниципальное бюджетное общеобразовательное учреждение Калиновская средняя общеобразовательная школа Карасукского района Новосибирской области","Дорнес Ирина Анатольевна","8(383)5558232","moukalinovka@mail.ru",0,0,0,0,1,1,0,1,1,30]
[null,null,"Муниципальное бюджетное общеобразовательное учреждение Кукаринская  средняя общеобразовательная школа Карасукского района Новосибирской области","Шило Олег Владимирович","8(383)5552923","moukukarka54@mail.ru",0,0,0,0,1,1,0,1,0,21]
[null,null,"Муниципальное бюджетное общеобразовательное учреждение Шилово-Курьинская  средняя общеобразовательная школа Карасукского района Новосибирской области","Сподина Ольга Владимировна","8(383)5543347","moumnasosh@mali.ru",0,0,0,0,1,1,0,1,2,56]
[null,null,"Муниципальное бюджетное общеобразовательное учреждение Михайловская средняя общеобразовательная школа","Крамская Галина Анатольевна","8(383)5556122","mihailovka54@mail.ru",0,0,0,0,1,1,0,1,1,15]
[null,null,"Муниципальное бюджетное общеобразовательное учреждение  Морозовская средняя общеобразовательная школа Карасукского района ","Подлужная Галина Анатольевна","8(383)5552532","morozovkasosh@mail.ru",0,0,0,0,1,1,0,1,3,31]
[null,null,"Муниципальное бюджетное общеобразовательное учреждение Октябрьская средняя общеобразовательная школа Карасукского района","Вагнер Наталья Давыдовна","8(383)5545283","mouoktyb54@mail.ru",0,0,0,0,1,1,0,1,2,30]
[null,null,"Муниципальное бюджетное общеобразовательное учреждение Павловская основная общеобразовательная школа Карасукского района","Ларгизова Валентина Степановна","8(383)5549417","9moupavlovkakr54@mail.ru",0,0,0,0,0,0,0,1,1,15]
[null,null,"Муниципальное бюджетное общеобразовательное учреждение Поповская средняя общеобразовательная школа Карасукского района","Воронов Александр Игоревич","8(383)5547123","moupopovka54@mail.ru",0,0,0,0,1,1,0,1,3,80]
[null,null,"Муниципальное бюджетное общеобразовательное учреждение Рассказовская основная общеобразовательная школа Карасукского района","Дома Елена Александровна","8(383)5549303","mourasskazovo@mail.ru",0,0,0,0,0,0,0,1,0,14]
[null,null,"Муниципальное бюджетное общеобразовательное учреждение   Студёновская  средняя общеобразовательная школа Карасукского района","Киреева Виктория Валерьевна","8(383)5548114","moustudenoe54@mail.ru",0,0,0,0,1,1,0,1,1,99]
[null,null,"Муниципальное бюджетное общеобразовательное учреждение Троицкая средняя общеобразовательная школа Карасукского района","Ремхе Людмила Карловна","8(383)5546132","moutroickoe54@mail.ru",0,0,0,0,1,1,0,1,1,27]
[null,null,"Муниципальное бюджетное общеобразовательное учреждение Хорошенская средняя общеобразовательная школа","Бакаляс Наталья Викторовна","8(383)5541195","horsvnsosh@mail.ru",0,0,0,0,1,1,0,1,1,26]
[null,null,"Муниципальное бюджетное общеобразовательное учреждение Чернокурьинская  средняя общеобразовательная  Карасукского районашкола","Тарасова Марина Александровна","8(383)5557390","1mougaisosh@mail.ru",0,0,0,0,1,1,0,1,3,46]
[null,null,"Муниципальное бюджетное дошкольное общеобразовательное учреждение детский сад №4 «Алёнушка» Карасукского района","Штраус Анна Анатольевна","8(383)5535176","karasuk3@bk.ru",0,0,0,0,1,1,0,1,1,36]
[null,null,"Муниципальное бюджетное дошкольное образовательное учреждение детский сад №10 «Золотой улей» Карасукского района Новосибирской области","Шелудько Оксана Александровна","8(383)73539","zolotoy.uley@bk.ru",0,0,0,0,1,1,0,0,2,97]
[null,null,"Муниципальное бюджетное дошкольное образовательное учреждение детский сад комбинированного вида №6 «Василёк» Карасукского района новосибирской области","Бакулина Татьяна Юрьевна","8(383)5536713","bakivan.ru@mail.ru",0,0,0,0,1,1,0,0,0,12]
[null,null,"Муниципальное бюджетное дошкольное образовательное учреждение детский сад комбинированного вида № 9 «Радуга» Карасукского района Новосибирской области","Горбунова Наталья Геннадьевна","8(383)5535231","gubina.irina@mail.ru ",0,0,0,0,1,1,0,0,0,50]
[null,null,"Муниципальное бюджетное дошкольное образовательное учреждение детский сад комбинированного вида № 8 «Сказка» Карасукского района Новосибирской области","Кострова Ирина Генадьевна","8(383)5521474","kostrova.irina2013@yandex.ru",0,0,0,0,1,1,0,0,0,20]
[null,null,"Муниципальное бюджетное дошкольное образовательное учреждение детский сад комбинированного вида № 5  Карасукского района«Улыбка»","Просолупова Инна Владимировна","8(383)5534065","mbdou_ulybka_5@mail.ru",0,0,0,0,0,2,0,0,2,32]
[null,null,"Муниципальное бюджетное дошкольное  образовательное учреждение Октябрьский детский сад «Алёнушка» Карасукского района Новосибирской области ","Костина Юлия Геннадьевна","8(383)5545223","yuliya_kostina08@mail.ru",0,0,0,0,0,2,0,0,0,33]
[null,null,"Итого",null,null,null,null,0,0,0,26,29,0,23,41,1333]

{"sheet":"Каргатский р-н","index":19,"n_rows":4,"n_cols":16,"rows_kept":4,"cut":false,"hidden":false,"merged":[[1,14,2,14],[1,15,2,15],[1,0,2,0],[1,1,2,1],[1,2,2,2],[1,3,1,5],[1,6,2,6],[1,7,2,7],[1,8,2,8],[1,9,2,9],[1,10,1,13]]}
["Ответственный",null,"Ермолович Анатолий Евгеньевич","Тел",89137099989,"e-mail","Uo.ermolovich@gmail.com "]
["№","Муниципальный район/городской округ","ОО, оказывающие услуги (полное название по Уставу)","Руководитель ОО, оказывающей услуги",null,null,"Наличие статуса КЦ/КП по локальным документам ОО (0-нет, 1 - есть, 2-планируется)","Наличие Приказа о создании КЦ/ оказании услуг в ОО (0-нет, 1 - есть)","Наличие пункта в  Уставе ОО об оказании услуг (0 - нет, 1 - есть) ","Наличие муниципального/госу-дарственного задания  по оказанию  услуг (0 - нет, 1 - есть) ","Количество специалистов, оказывающих услуги",null,null,null,"Количество специалистов, прошедших КПК по вопросам оказания услуг","Количество услуг, оказанных в 2020 г."]
[null,null,null,"Ф.И.О.","телефон","e-mail",null,null,null,null,"педагог-психолог","учитель-логопед","учитель-дефектолог","соц. педагог"]
[null,"Каргатский р-н","Итого",{"$f":"SUMIF(D2:D3,1)","v":0},0,0]

{"sheet":"Колыванский р-н","index":20,"n_rows":5,"n_cols":16,"rows_kept":5,"cut":false,"hidden":false,"merged":[[1,9,2,9],[1,10,1,13],[1,14,2,14],[1,15,2,15],[3,1,4,1],[1,1,2,1],[1,2,2,2],[1,3,1,5],[1,6,2,6],[1,7,2,7],[1,8,2,8]]}
["Ответственный",null,null,"Тел",null,"e-mail"]
[null,"Муниципальный район/городской округ","ОО, оказывающие услуги (полное название по Уставу)","Руководитель ОО, оказывающей услуги",null,null,"Наличие статуса КЦ/КП по локальным документам ОО","Наличие Приказа о создании КЦ/ оказании услуг в ОО","Наличие пункта в  Уставе ОО об оказании услуг ","Наличие муниципального/госу-дарственного задания  по оказанию  услуг ","Количество специалистов, оказывающих услуги",null,null,null,"Количество специалистов, прошедших КПК по вопросам оказания услуг","Количество услуг, оказанных в 2020 г."]
[null,null,null,"Ф.И.О.","телефон","e-mail",null,null,null,null,"педагог-психолог","учитель-логопед","учитель-дефектолог","соц. педагог"]
[null,null,"МБДОУ \"Больше-Оёшинский детский сад \"Теремок\"","Ахметова Светлана Юрьевна","8-913-747-24-70","sad.teremok12@mail.ru",1,1,0,0,1,1,1,0,2,150]
[null,null,"Итого",null,null,null,1,1,0,0,1,1,1,0,2,150]

{"sheet":"Коченевский р-н","index":21,"n_rows":7,"n_cols":16,"rows_kept":7,"cut":false,"hidden":false,"merged":[[1,14,2,14],[1,15,2,15],[3,0,9,0],[3,1,9,1],[1,0,2,0],[1,1,2,1],[1,2,2,2],[1,3,1,5],[1,6,2,6],[1,7,2,7],[1,8,2,8],[1,9,2,9],[1,10,1,13]]}
["Ответственный",null,"Рузанова Екатерина Павловна","Тел","8(953)7830894","e-mail","rek0102@yandex.ru"]
["№","Муниципальный район/городской округ","ОО, оказывающие услуги (полное название по Уставу)","Руководитель ОО, оказывающей услуги",null,null,"Наличие статуса КЦ/КП по локальным документам ОО (0-нет, 1 - есть, 2-планируется)","Наличие Приказа о создании КЦ/ оказании услуг в ОО (0-нет, 1 - есть)","Наличие пункта в  Уставе ОО об оказании услуг (0 - нет, 1 - есть) ","Наличие муниципального/госу-дарственного задания  по оказанию  услуг (0 - нет, 1 - есть) ","Количество специалистов, оказывающих услуги",null,null,null,"Количество специалистов, прошедших КПК по вопросам оказания услуг","Количество услуг, оказанных в 2020 г."]
[null,null,null,"Ф.И.О.","телефон","e-mail",null,null,null,null,"педагог-психолог","учитель-логопед","учитель-дефектолог","соц. педагог"]
["1.","Коченевский район","Муниципальное казённое общеобразовательное учреждение Коченевская средняя общеобразовательная школа № 13","Эбель Ольга Сергеевна","8(38351)271-08","kochss-13@yandex.ru",1,1,1,0,2,1,1,1,5,98]
[null,null,"МКОУ Коченевская СОШ № 1 имени Героя Советского Союза Аргунова Н.Ф.","Астафьев Сергей Иванович",89134573677,"kochs-1@yandex.ru",1,1,1,0,2,1,1,1,0,200]
[null,null,"Муниципальное казённое дошкольное образовательное учреждение детский сад №6 \"Антошка\"","Лопаленко Наталья Андреевна",89134509370,"mkdou-antoshka@yandex.ru",0,0,0,0,2,1,0,0,3,219]
[null,null,"Итого",null,null,null,2,2,2,0,6,3,2,2,8,517]

{"sheet":"Кочковский р-н","index":22,"n_rows":17,"n_cols":16,"rows_kept":17,"cut":false,"hidden":false,"merged":[[1,14,2,14],[1,15,2,15],[3,0,11,0],[3,1,15,1],[1,0,2,0],[1,1,2,1],[1,2,2,2],[1,3,1,5],[1,6,2,6],[1,7,2,7],[1,8,2,8],[1,9,2,9],[1,10,1,13]]}
["Ответственный",null,"Юстус Наталья Николаевна","Тел","8-383-56-22-365","e-mail","nnyustus@mail.ru "]
["№","Муниципальный район/городской округ","ОО, оказывающие услуги (полное название по Уставу)","Руководитель ОО, оказывающей услуги",null,null,"Наличие статуса КЦ/КП по локальным документам ОО","Наличие Приказа о создании КЦ/ оказании услуг в ОО","Наличие пункта в  Уставе ОО об оказании услуг ","Наличие муниципального/госу-дарственного задания  по оказанию  услуг ","Количество специалистов, оказывающих услуги",null,null,null,"Количество специалистов, прошедших КПК по вопросам оказания услуг","Количество услуг, оказанных в 2020 г."]
[null,null,null,"Ф.И.О.","телефон","e-mail",null,null,null,null,"педагог-психолог","учитель-логопед","учитель-дефектолог","соц. педагог"]
["1.","Кочковский","Муниципальное казённое общеобразовательное учреждение \"Решетовская средняя  школа \" Кочковского района Новосибирской области","Хижняк Елена Николаевна","8(383)5625294","scool-rechot@mail.ru ",0,0,0,0,1,1,0,1,1,34]
[null,null,"Муниципальное казённое  общеобразовательное учреждение \"Новорешетовская средняя  школа\" Кочковского района Новосибирской области","Николаец Ирина Анатольевна","8(38356)24-280","novr1972@mail.ru",0,0,0,0,0,0,0,0,0,100]
[null,null,"Муниципальное бюджетное общеобразовательное учреждение \"Кочковская средняя  школа\" Кочковского района Новосибирской области","Пальчикова Ирина Зиновьевна","8(383)56-22-198","kochki.shkola@mail.ru ",0,0,0,0,1,1,0,0,0,9]
[null,null,"Муниципалное казённое общеобразовательное учреждение \"Черновская средняя школа\"Кочковского района Новосибирской области","Синицина Надежда Геннадьевна","8(383)56-26-220","chernovca@rambler.ru",0,0,0,0,1,1,0,1,3,600]
[null,null,"Муниципальное казённое общеобразовательное учреждение \"Красносибирская средняя  школа\"Кочковского района Новосибирской области","Тимофеева Елена Николаевна","8(383)56-20-445","redsibschool632@yandex.ru ",0,0,0,0,1,0,1,0,3,25]
[null,null,"Муниципальное казённое общеобразовательное учреждение \"Быструхинская средняя  школа\" Кочковского района Новосибирской области","Безрукова Наталья Николаевна","8(383)56-23-186","bischool1965@mail.ru",0,0,0,0,0,0,0,0,0,60]
[null,null,"Муниципальное казённое общеобразовательное учреждение \"Жуланская средняя школа\" Кочковского района Новосибирской области","Дурнева Антонина Васильевна","8(383)56-27-143","julanka_school@mail.ru",0,0,0,0,1,1,0,1,0,100]
[null,null,"Муниципальное казённое общеобразовательное учреждение \"Троицкая средняя школа\" Кочковского района Новосибирской области","Горшкова Майя Сергеевна","8(383)56-28-118","troizk2007@rambler.ru ",0,0,0,0,0,0,0,0,0,11]
[null,null,"Муниципальное казённое общеобразовательное учреждение \"Новоцелинная средняя школа\" Кочковского района Новосибирской области","Болотова Наталья Алексеевна","8(383)56-21-123","nshoph@mail.ru ",0,0,0,0,1,1,null,1,2,84]
[null,null,"Муниципальное казённое общеобразовательное учреждение \"Республиканская основная  школа\" Кочковского района Новосибирской области","Смирнова Галина Владимировна","8(383)56-37-366","rooch5@mail.ru ",0,0,0,0,0,0,0,0,0,9]
[null,null,"Муниципальное казённое общеобразовательное учреждение \"Букреевская основная школа\" Кочковского района Новосибирской области","Горб Алёна Сергеевна","8(383)56-36-221","bukri_school@ngs.ru ",0,0,0,0,1,1,1,1,3,28]
[null,null,"Муниципальное казённое общеобразовательное учреждение \"Ермаковская основная школа\" Кочковского района Новосибирской области","Шлыкова Тамара Николаевна","8(383)56-34-455","ermaki2@yandex.ru ",0,0,0,0,0,0,0,0,0,37]
[null,null,"Муниципальное казённое дошкольное образовательное учреждение Кочковский детский сад \"Солнышко\" Кочковского района Новосибирской области","Абалымова Ирина Михайловна","8-383-56-22-462","detsad_kochki@mail.ru ",0,0,0,0,1,1,0,0,0,103]
[null,null,"Итого",null,null,null,null,0,0,0,8,7,2,5,12,1200]

{"sheet":"Красноозерский р-н","index":23,"n_rows":5,"n_cols":16,"rows_kept":5,"cut":false,"hidden":false,"merged":[[1,14,2,14],[1,15,2,15],[3,0,4,0],[3,1,4,1],[1,0,2,0],[1,1,2,1],[1,2,2,2],[1,3,1,5],[1,6,2,6],[1,7,2,7],[1,8,2,8],[1,9,2,9],[1,10,1,13]]}
["Ответственный",null,null,"Тел",null,"e-mail"]
["№","Муниципальный район/городской округ","ОО, оказывающие услуги (полное название по Уставу)","Руководитель ОО, оказывающей услуги",null,null,"Наличие статуса КЦ/КП по локальным документам ОО","Наличие Приказа о создании КЦ/ оказании услуг в ОО","Наличие пункта в  Уставе ОО об оказании услуг ","Наличие муниципального/госу-дарственного задания  по оказанию  услуг ","Количество специалистов, оказывающих услуги",null,null,null,"Количество специалистов, прошедших КПК по вопросам оказания услуг","Количество услуг, оказанных в 2020 г."]
[null,null,null,"Ф.И.О.","телефон","e-mail",null,null,null,null,"педагог-психолог","учитель-логопед","учитель-дефектолог","соц. педагог"]
["1.","Краснозерский район","муниципальное казенное дошкольное образовательное учреждение Краснозерский детский сад № 6","Клочкова Светлана Вячеславовна","8(383)-57-41-936","ksv020573@mail.ru",1,1,1,0,1,2,0,0,0,7]
[null,null,"Итого",null,null,null,1,1,1,0,1,2,0,0,0,7]

{"sheet":"Куйбышевский р-н","index":24,"n_rows":5,"n_cols":16,"rows_kept":5,"cut":false,"hidden":false,"merged":[[1,14,2,14],[1,15,2,15],[1,0,2,0],[1,1,2,1],[1,2,2,2],[1,3,1,5],[1,6,2,6],[1,7,2,7],[1,8,2,8],[1,9,2,9],[1,10,1,13]]}
["Ответственный",null,null,"Тел",null,"e-mail"]
["№","Муниципальный район/городской округ","ОО, оказывающие услуги (полное название по Уставу)","Руководитель ОО, оказывающей услуги",null,null,"Наличие статуса КЦ/КП по локальным документам ОО (0-нет, 1 - есть, 2-планируется)","Наличие Приказа о создании КЦ/ оказании услуг в ОО (0-нет, 1 - есть)","Наличие пункта в  Уставе ОО об оказании услуг (0 - нет, 1 - есть) ","Наличие муниципального/госу-дарственного задания  по оказанию  услуг (0 - нет, 1 - есть) ","Количество специалистов, оказывающих услуги",null,null,null,"Количество специалистов, прошедших КПК по вопросам оказания услуг","Количество услуг, оказанных в 2020 г."]
[null,null,null,"Ф.И.О.","телефон","e-mail",null,null,null,null,"педагог-психолог","учитель-логопед","учитель-дефектолог","соц. педагог"]
["1.","Куйбышевский","Муниципальное казѐнное дошкольное образовательное\nучреждение Куйбышевского района – детский сад комбинированного вида\n«Солнышко»","Сизёва Нина Иоганесовна","8(383-62) 62-432","sadik_solnce@ngs.ru",1,1,0,0,1,1,1,0,0,60]
[null,null,"Итого",null,null,null,1,1,0,0,1,1,1,0,0,60]

{"sheet":"Купинский р-н","index":25,"n_rows":21,"n_cols":17,"rows_kept":21,"cut":false,"hidden":false,"merged":[[18,16,18,17],[19,16,19,17],[12,16,12,17],[13,16,13,17],[14,16,14,17],[15,16,15,17],[16,16,16,17],[17,16,17,17],[1,7,2,7],[1,8,2,8],[1,9,2,9],[1,10,1,13],[11,16,11,17],[1,14,2,14],[1,15,2,15],[1,16,2,17],[3,16,3,17],[4,16,4,17],[5,16,5,17],[6,16,6,17],[7,16,7,17],[8,16,8,17],[9,16,9,17],[10,16,10,17],[1,0,2,0],[1,1,2,1],[1,2,2,2],[1,3,1,5],[1,6,2,6]]}
["Ответственный",null,"Османкина Светлана Васильевна","Тел","8 (383)58-20-045.","e-mail","swetlana.osmankina@yandex.ru"]
["№","Наименвание муниципального округа","ОО, оказывающие услуги (полное название по Уставу)","Руководитель ОО, оказывающей услуги",null,null,"Наличие статуса КЦ/КП по локальным документам ОО (0-нет, 1 - есть, 2-планируется)","Наличие Приказа о создании КЦ/ оказании услуг в ОО (0-нет, 1 - есть)","Наличие пункта в  Уставе ОО об оказании услуг (0 - нет, 1 - есть) ","Наличие муниципального/госу-дарственного задания  по оказанию  услуг (0 - нет, 1 - есть) ","Количество специалистов, оказывающих услуги",null,null,null,"Количество специалистов, прошедших КПК по вопросам оказания услуг","Количество услуг, оказанных в 2020 г.","Примичание"]
[null,null,null,"Ф.И.О.","телефон","e-mail",null,null,null,null,"педагог-психолог","учитель-логопед","учитель-дефектолог","соц. педагог"]
[1,"Купинский район","Муниципальное казенное дошкольное образовательное учреждение детский сад \"Теремок\" Купинского района","Доркина Наталья Геннадьевна","8(383)58-23697","det_sad_teremok@mail.ru ",1,1,1,0,1,1,0,0,2,58,"Статус КЦ (наличие муниципального задания)"]
[2,"Купинский район","Муниципальное бюджетное общеобразовательное учреждение Купинского района \"Специальная (коррекционная) школа-интернат №2\"","Гроссу Ирина Олеговна","8(383)58-23-806","si2_kup@edu54.ru ",0,0,1,0,1,1,1,1,4,74,"Наличие пункта в уставе"]
[3,"Купинский район","Муниципальное бюджетное общеобразовательное учреждение специальная (коррекционная) школа – интернат № 1 Купинского района  Новосибирской области.","Кокарева О.В.","8(383)58- 23-640","si1_kup@edu54.ru ",0,0,1,0,3,2,0,2,7,206,"Наличие пункта в уставе"]
[4,"Купинский район","Муниципальное бюджетное общеобразовательное учреждение средняя общеобразовательная школа № 148 Купинского района","Олексюк Инна Валерьевна  ","8(383)58-23-158","s_148_kup@edu54.ru ",0,0,1,0,1,1,1,1,0,8,"Наличие пункта в уставе"]
[5,"Купинский район","Муниципальное бюджетное общеобразовательное учреждение лицей № 2 Купинского района","Кравченко Наталья Георгиевна","8(383)58-28-555","l2_kup@edu54.ru",1,1,1,0,1,0,0,2,1,23,"Статус КП"]
[6,"Купинский район","Муниципальное бюджетное общеобразовательное учреждение средняя общеобразовательная школа № 105 Купинского района","Екимова тамара Дмитриевна","8(383)5823735","s_105_kup@edu54.ru",0,0,1,0,1,0,1,1,2,487,"Наличие пункта в уставе"]
[7,"Купинский район","Муниципальное бюджетное общеобразовательное учреждение средняя общеобразовательная школа № 80 им. В.П.Кузнецоваь Купинского района","Анищенко Людмила Анатольевна",83835823807,"soch80@ngs.ru",0,0,1,0,1,0,0,1,0,132,"Наличие пункта в уставе"]
[8,"Купинский район","Муниципальное казенное общеобразовательное учреждение Веселокутская основная общеобразовательная школа Купинского района","Швец Марина Викторовна","8(383)5848425","veselkut@yandex.ru",0,1,1,0,0,0,0,0,3,5,"Наличие пункта в уставе"]
[9,"Купинский район","МБОУ Киргинцевская СОШ Купинского района","Маер Ирина Александровна","8 (38358) 30-222","s_kir_kup@edu54.ru",0,0,1,0,0,0,0,1,0,4,"Наличие пункта в уставе"]
[10,"Купинский район","Муниципальное бюджетное общеобразовательное учреждение Метелёвская средняя  общеобразовательная школа Купинского района","Слепцова Светлана Витальевна","8 383 58 46 291","metelkup@ngs.ru",0,0,1,0,0,0,0,0,0,9,"Наличие пункта в уставе"]
[11,"Купинский район","Муниципальное бюджетное общеобразовательное учреждение Новоключевская средняя общеобразовательная школа Купинского района","Артеменко Людмила Петровна","8-383-58-24031","s_nklyuch_kup@edu54.ru",0,0,1,0,0,0,0,0,9,6,"Наличие пункта в уставе"]
[12,"Купинский район","Муниципальное бюджетное общеобразовательное учреждение Новониколаевская средняя общеобразовательная школа Купинского района","Тур Людмила Ивановна",83835837266,"novnik@ngs.ru",0,0,1,0,1,0,0,0,0,2,"Наличие пункта в уставе"]
[13,"Купинский район","Муниципальное бюджетное общеобразовательное учреждение Новосельская средняя общеобразовательная школа имени четырёх Героев Советского Союза Купинского района","Сорока Любовь Ивановна","8 (38358)49 217","s_nsel_kup@edu54.ru",1,1,1,0,1,1,0,0,2,9,"Статус КП"]
[14,"Купинский район","Муниципальное бюжетное общеобразовательное учреждение Рождественская средняя общеобразовательная школа Куписнкого района ","Бабий Марина Викторовна",83835826539,"rogd86@yandex.ru",1,1,1,0,0,1,0,1,2,20,"Статус КП"]
[15,"Купинский район","Муниципальное бюджетное общеобразовательное учреждение Советская средняя общеобразовательная школа Купинского района","Нестерок Надежда Александровна",83835839283,"s_sov_kup@edu54.ru",0,0,1,0,0,0,0,0,0,120,"Наличие пункта в уставе"]
[16,"Купинский район","Муниципальное казенное дошкольное образовательное учреждение детский сад \"Золотой ключик\" Купинского района","Шпирко Светлана Владимировна",83835821028,"zolotoykluchik.kup@mail.ru",0,0,1,0,0,1,0,0,1,17,"Наличие пункта в уставе"]
[17,"Купинский район","Муниципальное казенное дошкольное образовательное учреждение детский сад \"Солнышко\"Купинского района","Степина Ирина Родионовна","8-383-58-23-947","solnze.2002@mail.ru",0,1,1,0,1,2,0,0,9,30,"Наличие пункта в уставе"]
[null,null,"Итого",null,null,null,4,6,17,0,12,10,3,10,42,1210]

{"sheet":"Кыштовский р-н","index":26,"n_rows":5,"n_cols":16,"rows_kept":5,"cut":false,"hidden":false,"merged":[[1,14,2,14],[1,15,2,15],[1,0,2,0],[1,1,2,1],[1,2,2,2],[1,3,1,5],[1,6,2,6],[1,7,2,7],[1,8,2,8],[1,9,2,9],[1,10,1,13]]}
["Ответственный",null,null,"Тел",null,"e-mail"]
["№","Муниципальный район/городской округ","ОО, оказывающие услуги (полное название по Уставу)","Руководитель ОО, оказывающей услуги",null,null,"Наличие статуса КЦ/КП по локальным документам ОО","Наличие Приказа о создании КЦ/ оказании услуг в ОО","Наличие пункта в  Уставе ОО об оказании услуг ","Наличие муниципального/госу-дарственного задания  по оказанию  услуг ","Количество специалистов, оказывающих услуги",null,null,null,"Количество специалистов, прошедших КПК по вопросам оказания услуг","Количество услуг, оказанных в 2020 г."]
[null,null,null,"Ф.И.О.","телефон","e-mail",null,null,null,null,"педагог-психолог","учитель-логопед","учитель-дефектолог","соц. педагог"]
["1.","Кыштовский район","Муниципальное казенное дошкольное образовательное учреждение детский сад \"Ласточка\"","Куц Елена Анатольевна","8 383 71 21-550","detskijsad_lastochka@inbox.ru",1,1,0,0,1,1,1,0,0,47]
[null,null,"Итого",null,null,null,1,1,0,0,1,1,1,0,0,47]

{"sheet":"Маслянинский р-н","index":27,"n_rows":7,"n_cols":16,"rows_kept":7,"cut":false,"hidden":false,"merged":[[1,14,2,14],[1,15,2,15],[3,0,4,0],[3,1,4,1],[1,0,2,0],[1,1,2,1],[1,2,2,2],[1,3,1,5],[1,6,2,6],[1,7,2,7],[1,8,2,8],[1,9,2,9],[1,10,1,13]]}
["Ответственный",null,"Мусатова Мария Игоревна","Тел","8(383)47-22 275","e-mail","musatovamariyy4ndex.ru@yandex.ru"]
["№","Муниципальный район/городской округ","ОО, оказывающие услуги (полное название по Уставу)","Руководитель ОО, оказывающей услуги",null,null,"Наличие статуса КЦ/КП по локальным документам ОО","Наличие Приказа о создании КЦ/ оказании услуг в ОО","Наличие пункта в  Уставе ОО об оказании услуг ","Наличие муниципального/госу-дарственного задания  по оказанию  услуг ","Количество специалистов, оказывающих услуги",null,null,null,"Количество специалистов, прошедших КПК по вопросам оказания услуг","Количество услуг, оказанных в 2020 г."]
[null,null,null,"Ф.И.О.","телефон","e-mail",null,null,null,null,"педагог-психолог","учитель-логопед","учитель-дефектолог","соц. педагог"]
["1.","Маслянинский район","Муниципальное казённое дошкольное образовательное учреждение детский сад \"Росинка\" комбинированного вида Маслянинского района Новосибирской области","Уйко Любовь Николаевна","8(383- 47)51-615","detskijsadrosinka2016@yandex.ru",1,1,1,0,1,1,null,null,0,10]
[null,null,"Муниципальное казённое дошкольное образовательное учреждение детский сад \"Тополек\" комбинированного вида Маслянинского района Новосибирской области","Березан Валентина Николаевна","8(383-47)23-885","topolekmasl@yandex.ru",1,1,1,0,1,3,null,null,0,14]
[null,null,"МБОУ Маслянинская СОШ №1","Деревнина Ирина Алексеевна","(8 383 47) 21-428","mscool1@mail.ru",2,0,0,0,1,1,0,1,0,0]
[null,null,"Итого",null,null,null,2,2,2,0,3,5,0,1,0,24]

{"sheet":"Мошковский р-н","index":28,"n_rows":4,"n_cols":16,"rows_kept":4,"cut":false,"hidden":false,"merged":[[1,15,2,15]]}
["Ответственный",null,"Курека Наталья Сергеевна","Тел","8(383)48 21-823","e-mail","okureka@mail.ru"]
["№","Муниципальный район/городской округ","ОО, оказывающие услуги (полное название по Уставу)","Руководитель ОО, оказывающей услуги",null,null,"Наличие статуса КЦ/КП по локальным документам ОО","Наличие Приказа о создании КЦ/ оказании услуг в ОО","Наличие пункта в  Уставе ОО об оказании услуг ","Наличие муниципального/госу-дарственного задания  по оказанию  услуг ","Количество специалистов, оказывающих услуги",null,null,null,"Количество специалистов, прошедших КПК по вопросам оказания услуг","Количество услуг, оказанных в 2020 г."]
[null,null,null,"Ф.И.О.","телефон","e-mail",null,null,null,null,"педагог-психолог","учитель-логопед","учитель-дефектолог","соц. педагог"]
[null,"Мошковский район","Итого"]

{"sheet":"Новосибирский р-н","index":29,"n_rows":60,"n_cols":16,"rows_kept":60,"cut":false,"hidden":false,"merged":[[1,14,2,14],[1,15,2,15],[3,0,58,0],[3,1,58,1],[25,7,26,7],[1,0,2,0],[1,1,2,1],[1,2,2,2],[1,3,1,5],[1,6,2,6],[1,7,2,7],[1,8,2,8],[1,9,2,9],[1,10,1,13]]}
["Ответственный",null,"Лавриненко Ирина Валерьевна","Тел","8905-938-1766","e-mail","soc@biolicey21.ru"]
["№","Муниципальный район/городской округ","ОО, оказывающие услуги (полное название по Уставу)","Руководитель ОО, оказывающей услуги",null,null,"Наличие статуса КЦ/КП по локальным документам ОО","Наличие Приказа о создании КЦ/ оказании услуг в ОО","Наличие пункта в  Уставе ОО об оказании услуг ","Наличие муниципального/госу-дарственного задания  по оказанию  услуг ","Количество специалистов, оказывающих услуги",null,null,null,"Количество специалистов, прошедших КПК по вопросам оказания услуг","Количество услуг, оказанных в 2020 г."]
[null,null,null,"Ф.И.О.","телефон","e-mail",null,null,null,null,"педагог-психолог","учитель-логопед","учитель-дефектолог","соц. педагог"]
["1.","Новосибирский район ","Муниципальное казенное образовательное учреждение Новосибирского района Новосибирской области для детей, нуждающихся в психолого-педагогической и медико-социальной помощи «Центр диагностики и консультирования» (ЦЕНТР СОПРОВОЖДЕНИЯ «ЯНТАРЬ»)","Черняева Екатерина Геннадьевна","(383) 348-36-09","yantar@edunor.ru.",1,1,1,0,5,1,1,1,0,17]
[null,null,"Муниципальное бюджетное общеобразовательное учреждение Новосибирского района Новосибирской области Краснообская средняя общеобразовательная школа №1 с углубленным изучением отдельных предметов. (МБОУ Краснообская СОШ №1)","Сизиков Александр Викторович "," +7 (383) 348-46-42","school1@edunor.ru",1,1,1,0,3,2,0,1,0,208]
[null,null," Муниципальное бюджетное общеобразовательное учреждение Новосибирского района Новосибирской области \"Краснообская школа № 2\"(МБОУ «Краснообская школа № 2»)"," Бедина Ольга Ивановна","+7 (383) 348-3770","school2@edunor.ru",1,1,1,0,1,2,2,1,0,139]
[null,null,"Муниципальное бюджетное общеобразовательное учреждение Новосибирского района Новосибирской области - Ярковская средняя общеобразовательная школа №3 с кадетскими классами ( МБОУ - Ярковская СОШ №3 с кадетскими классами)","Сурков Алексей Валентинович","(383)293 45 00","school3@edunor.ru",1,1,1,0,1,1,0,1,0,61]
[null,null,"Муниципальное казенное общеобразовательное учреждение Новосибирского района Новосибирской области \"Ленинская средняя школа № 6\"","Рулева Лариса Геннадьевна ","(383)294 72 89","scool6@edunor.ru",1,1,1,0,1,0,0,1,0,10]
[null,null,"Муниципальное бюджетное общеобазовательное учреждение Новосибирского района Новосибирской области \"Красноглинная основная школа № 7\"( МБОУ «Красноглинная школа № 7»)","Карманова Наталья Ибрагимовна","8(383)295-21-07","school7@edunor.ru",1,1,1,0,1,1,0,1,0,45]
[null,null,"Муниципальное бюджетное общеобразовательное учреждение Новосибирского района Новосибирской области - Барышевская средняя школа № 9 ( МБОУ - Барышевская СШ № 9)","Галуза Анжелла Леонидовна","(383)293 63 93","school9@edunor.ru",1,1,1,0,3,1,1,1,0,65]
[null,null,"Муниципальное бюджетное общеобразовательное учреждение Новосибирского района Новосибисркой области — средняя общеобразовательная школа №11 Шиловского гарнизона (МБОУ СОШ №11 Шиловского гарнизона)","Косовая Валентина Михайловна","+7 (383) 2-93-57-23","http://school11shil.ru",1,1,1,0,1,0,0,1,0,45]
[null,null,"МУНИЦИПАЛЬНОЕ БЮДЖЕТНОЕ ОБЩЕОБРАЗОВАТЕЛЬНОЕ УЧРЕЖДЕНИЕ НОВОСИБИРСКОГО РАЙОНА НОВОСИБИРСКОЙ ОБЛАСТИ \"БЕРЕЗОВСКАЯ СРЕДНЯЯ ШКОЛА №12\" ( МБОУ \"БЕРЕЗОВСКАЯ ШКОЛА №12\")","Дедюшко Наталья Михайловна ","(383)293 82 38","school12@edunor.ru",1,1,1,0,1,1,1,1,0,82]
[null,null," Муниципальное автономное общеобразовательное учреждение Новосибирского района Новосибирской области – лицей № 13 п. Краснообск (МАОУ Новосибирского района Новосибирской области – лицей № 13 п. Краснообск)","Зиновьева Наталья Викторовна","348-05-29"," principal@gk13.ru",1,1,1,0,2,1,1,2,0,200]
[null,null,"Муниципальное бюджетное общеобразовательное учреждение  Новосибирского района Новосибирской области - Верх-Тулинская средняя общеобразовательная школа №14 (МБОУ -Верх-Тулинская СОШ №14)","Уксусова Надежда Ивановна ","383-2-933-179","school14@edunor.ru",1,1,1,0,2,2,1,2,0,102]
[null,null,"Муниципальное бюджетное общеобразовательное учреждение Новосибирского района Новосибирской области - средняя школа № 18 ст.Мочище (МБОУ - СШ №18 ст.Мочище)","Мыльникова Тамара Степановна ","(383)294 71 82","school18m@edunor.ru",1,1,1,0,2,2,1,1,0,70]
[null,null,"Муниципальное казённое общеобразовательное учреждение Новосибирского района Новосибирской области \"Гусинобродская основная школа №18\" (МКОУ \"Гусинобродская ОШ №18\")","Плотникова Светлана Владимировна","(383)294 13 03","school18@edunor.ru",1,1,1,0,1,1,1,1,0,13]
[null,null," Муниципальное бюджетное общеобразовательное учреждение Новосибирского района Новосибирской области - Раздольненская средняя школа № 19 (МБОУ - Раздольненская школа № 19)","Дудкин Александр Петрович","+7(383)2-941-536","school19@edunor.ru",1,1,1,0,2,1,0,1,0,92]
[null,null,"Муниципальное бюджетное общеобразовательное учреждение Новосибирского района Новосибирской области – Криводановская средняя школа № 22 (МБОУ – Криводановская СШ№ 22)","Панин Алексей Николаевич ","(383)297 17 10","school22@edunor.ru",1,1,1,0,3,3,1,2,0,203]
[null,null,"Муниципальное бюджетное общеобразовательное учреждение Новосибирского района Новосибирской области \"Кудряшовская средняя школа № 25\" ( МБОУ Кудряшовская СШ № 25)","Веревкин Максим Сергеевич","+7 (383) 293-99-46","school25@edunor.ru",1,1,1,0,1,1,0,1,0,80]
[null,null,"Муниципальное бюджетное общеобразовательное учреждение Новосибирского района Новосибирской области “Краснояровская средняя школа № 30 имени Героя России Александра Галле” (МБОУ “Краснояровская школа № 30 им. Героя России А. Галле”) ","Бессарабова Ирина Эдуардовна"," 8(383)29-42-554","school30@edunor.ru",1,1,1,0,2,2,0,1,0,45]
[null,null,"Муниципальное казенное общеобразовательное учреждение Новосибирского района Новосибирской области - Кубовинская основная школа № 31 ( МКОУ - Кубовинская ОШ № 31)"," Слободянюк Михаил Юрьевич","89139211609 ","school31@edunor.ru",1,1,1,0,1,0,1,1,0,15]
[null,null,"Муниципальное бюджетное общеобразовательное учреждение Новосибирского района Новосибирской области \"Сосновская средняя школа №32\" ( МБОУ \"Сосновская школа №32\")","Еремина Ирина Викторовна","(383)295 12 40","school32@edunor.ru",1,1,1,0,0,1,1,1,0,42]
[null,null,"Муниципальное казенное общеобразовательное учреждение Новосибирского района Новосибирской области - Жеребцовская основная общеобразовательная школа № 39 (МКОУ ООШ № 39) ","Дид Арина Александровна","8(383)304-64-25","school39@edunor.ru",1,1,1,0,1,0,0,1,0,18]
[null,null,"Муниципальное бюджетное общеобразовательное учреждение Новосибирского района Новосибирской области «Каменская средняя школа №44» (МБОУ «Каменская средняя школа №44»)","Фролов Дмитрий Михайлович","+7 (383) 295-61-81","school44@edunor.ru",1,1,1,0,1,1,0,1,0,60]
[null,null,"Муниципальное бюджетное общеобразовательное учреждение Новосибирского района Новосибирской  области «Мочищенская средняя школа № 45» (МБОУ “Мочищенская школа № 45”)","Семенова Елена Николаевна","8 (383)3 054 349","school45@edunor.ru",1,1,1,0,1,1,1,1,0,71]
[null,null,"Муниципальное бюджетное общеобразовательное учреждение Новосибирского района Новосибирской области \"Ленинская средняя школа № 47\" ( МБОУ \"Ленинская школа № 47\")","Кузьмичева Зинаида Леонидовна","8(383)2954-453","School47@edunor.ru",1,1,1,0,1,1,1,1,0,50]
[null,null,"Муниципальное казенное общеобразовательное учреждение Новосибирского района Новосибирской области \"Красномайская основная школа № 49\" ( МКОУ \"Красномайская ОШ № 49\")","Малюшко Юрий Владимирович","(383)349 14 15","school49@edunor.ru",1,null,1,0,1,1,0,1,0,10]
[null,null,"Муниципальное казенное общеобразовательное учреждение Новосибирского района Новосибирской области Приобская основная школа № 53 (МКОУ \"Приобская школа №53\")","Царёв Михаил Иванович","(383)297 01 26","school53@edunor.ru",1,1,1,0,1,1,1,1,0,11]
[null,null,"Муниципальное бюджетное общеобразовательное учреждение Новосибирского района Новосибирской области \"Новолуговская средняя школа №57\" (МБОУ \"Новолуговская средняя школа № 57\")","Земцева Ирина Борисовна","(838)329 38 67","school57@edunor.ru",1,1,1,0,2,2,1,1,0,62]
[null,null,"Муниципальное казенное общеобразовательное учреждение Новосибирского района Новосибирской области \"Толмачевская средняя общеобразовательная школа № 61\" (МКОУ \"Толмачевская СОШ № 61\")","Вьюгова Ирина Геннадьевна ","(383)295 71 80","school61@edunor.ru",1,1,1,0,2,1,1,1,0,146]
[null,null,"Муниципальное бюджетное общеобразовательное учреждение Новосибирского района Новосибирской области - Пашинская средняя школа №70 (МБОУ - Пашинская школа № 70)","Захаренко Евгения Анатольевна","(383)295 35 45","school70@edunor.ru",1,1,1,0,1,2,1,1,0,55]
[null,null,"Муниципальное казенное общеобразовательное учреждение Новосибирского района Новосибирской области - Ново-Шиловская средняя общеобразовательная школа № 82 (МКОУ - Ново-Шиловская СОШ № 82)","Селиванов Павел Анатольевич","+7 (383) 293-41-31","school82@edunor.ru",1,1,1,0,1,1,0,1,0,19]
[null,null,"Муниципальное бюджетное общеобразовательное учреждение Новосибирского района Новосибирской области - Боровская средняя школа № 84 ( МБОУ-Боровская СШ №84)","Шпартюк Константин Владимирович","+7 (383)295-85-23","school84@edunor.ru",1,1,1,0,1,0,0,1,0,45]
[null,null,"Муниципальное Казенное Общеобразовательное Учреждение Новосибирского Района Новосибирской Области - Плотниковская Средняя Общеобразовательная Школа № 111 (МКОУ - Плотниковская СОШ №111)","Егоров Андрей Викторович","8 (383) 2 94-91-94","school111@edunor.ru",1,1,1,0,2,1,1,1,0,26]
[null,null,"Муниципальное бюджетное общеобразовательное учреждение Новосибирского района Новосибирской области \"Железнодорожная средняя школа №121\" (МБОУ \" Железнодорожная средняя школа №121\")","Федорова Галина Сергеевна","(383)294 80 39","School121@edunor.ru",1,1,1,0,1,1,0,1,0,45]
[null,null,"Муниципальное бюджетное общеобразовательное учреждение Новосибирского района Новосибирской области \"Мичуринская средняя школа №123\" (МБОУ \"Мичуринская школа №123\")","Ширяев Сергей Петрович ","(383)294 43 29","school123@edunor.ru",1,1,1,0,0,1,0,1,0,50]
[null,null,"Муниципальное бюджетное общеобразовательное учреждение Новосибирского района Новосибирской области - основная школа № 161 ст. Издревая (МБОУ - ОШ № 161)","Иванов Михаил Алексеевич","(383)297 64 46","school161@edunor.ru",1,1,1,0,1,1,1,1,0,45]
[null,null,"Муниципальное бюджетное дошкольное образовательное учреждение Новосибирского района Новосибирской области детский сад \"Теремок\" ( МБДОУ - детский сад \"Теремок\")","Столбунова Наталья Николаевна","(383)308 77 55","teremok@edunor.ru",1,1,1,0,2,3,1,0,0,119]
[null,null,"Муниципальное бюджетное дошкольное образовательное учреждение Новосибирского района Новосибирской области - детский сад «Чебурашка» ( МБДОУ - детский сад \"Чебурашка\")","Филиппова Любовь Юрьевна","(383)348 54 80","cheburashka@edunor.ru",1,1,1,0,2,3,1,0,0,112]
[null,null,"Муниципальное бюджетное дошкольное образовательное учреждение – детский сад «Дельфин» (МБДОУ - детский сад «Дельфин»)","Кулик Лариса Васильевна","(383)348-59-32","dolphin@edunor.ru",1,1,1,0,1,3,1,0,0,75]
[null,null,"Муниципальное автономное дошкольное образовательное учреждение - детский сад комбинированного вида \"Колосок\" (МАДОУ - д/с \"Колосок\")","Чекина Римма Юрьевна ","(383)348 49 72","kolosok@edunor.ru",1,1,1,0,1,2,0,0,0,118]
[null,null,"Муниципальное бюджетное дошкольное образовательное учреждение Новосибирского района Новосибирской области - детский сад комбинированного вида \"Росток\" МБДОУ - детский сад \"Росток\"","Абрамова Наталья Сергеевна","(383)293 13 12","rostok@edunor.ru",1,1,1,0,1,2,0,0,0,64]
[null,null,"Муниципальное казенное дошкольное образовательное учреждение Новосибирского района Новосибирской области - детский сад комбинированного вида \"Родничок\" ( МКДОУ - детский сад \"Родничок\")","Гукова Елена Геннадьевна","(383)295 12 37","rodnichek@edunor.ru",1,1,1,0,1,1,0,0,0,15]
[null,null,"Муниципальное бюджетное дошкольное образовательное учреждение Новосибирского района Новосибирской области - детский сад \"Капелька\" ( МБДОУ - детский сад \"Капелька\")","Червякова Наталья Владимировна","(838)297 21 57","kapelka@edunor.ru",1,1,1,0,1,1,1,0,0,82]
[null,null,"Муниципальное бюджетное дошкольное образовательное учреждение Новосибирского района Новосибирской области - детский сад \"Звездочка\" ( МБДОУ - детский сад \"Звездочка\")","Головченко Елена Александровна","(383)297 28 00","zvezdochka@edunor.ru",1,1,1,0,1,0,0,0,0,56]
[null,null,"Муниципальное казенное дошкольное образовательное учреждение Новосибирского района Новосибирской области – детский сад комбинированного вида \"Солнышко\"( МКДОУ-детский сад \"Солнышко\")","Пуганова Галина Фёдоровна","(383)293 31 91","solnishko@edunor.ru",1,1,1,0,1,1,0,0,0,50]
[null,null,"Муниципальное казенное дошкольное образовательное учреждение Новосибирского района Новосибирской области - детский сад комбинированного вида \"Золотой ключик\" ( МКДОУ - детский сад \"Золотой ключик\")","Панфилова Лариса Павловна","8 (383) 293-31-39","goldenkey@edunor.ru",1,1,1,0,1,2,0,0,0,56]
[null,null,"Муниципальное бюджетное дошкольное образовательное учреждение Новосибирского района Новосибирской области - детский сад \"Медвежонок\" ( МБДОУ - детский сад \"Медвежонок\")","Пугина Любовь Васильевна","2-939-949","medvezhenok@edunor.ru",1,1,1,0,2,1,0,0,0,69]
[null,null,"Муниципальное казенное дошкольное образовательное учреждение Новосибирского района Новосибирской области - детский сад комбинированного вида \"Незабудка\" (МКДОУ - детский сад \"Незабудка\")","Серова Елена Викторовна","(383)293 69 96","nezabudka@edunor.ru",1,1,1,0,1,1,0,0,0,41]
[null,null,"Муниципальное казенное дошкольное образовательное учреждение Новосибирского района Новосибирской области-детский сад комбинированного вида \"Белочка\" ( МКДОУ-детский сад \"Белочка\")","Санченкова Елена Геннадьевна","2-958-182","belochka@edunor.ru",1,1,1,0,1,1,0,0,0,25]
[null,null,"Муниципальное бюджетное дошкольное образовательное учреждение Новосибирского района Новосибирской области - детский сад \"Елочка\" ( МБДОУ - детский сад \"Елочка\")","Сусоева Татьяна Владимировна","(383)293 63 47","elochka@edunor.ru",1,1,1,0,1,2,0,0,0,74]
[null,null,"Муниципальное казенное дошкольное образовательное учреждение Новосибирского района Новосибирской области - детский сад комбинированного вида \"Лучик\" ( МКДОУ - детский сад \"Лучик\")","Высотина Татьяна Владимировна","8(383)295-36-66","luchik@edunor.ru",1,1,1,0,1,2,0,0,0,54]
[null,null,"Муниципальное казенное дошкольное образовательное учреждение Новосибирского района Новосибирской области - детский сад \"Василек\" п. Железнодорожный (МКДОУ - детский сад \"Василек\" п.Железнодорожный) (МКДОУ- детский сад \"Василек\" п.Железнодорожный)","Новикова Елена Игоревна ","294-80-25","vasilek@edunor.ru",1,1,1,0,1,1,0,0,0,9]
[null,null,"Муниципальное казенное дошкольное образовательное учреждение Новосибирского района Новосибирской области - детский сад \"Радуга\" с.Новошилово ( МКДОУ детский сад \"Радуга\")","Денисова Елена Николаевна","(383)293 41 87","rainbow@edunor.ru",1,1,1,0,1,1,0,0,0,13]
[null,null,"Муниципальное казенное дошкольное образовательное учреждение Новосибирского района Новосибирской области - детский сад \"Земляничка\" с.Березовка ( МКДОУ - детский сад \"Земляничка\")","Потешкина Ирина Сергеевна","(383)293 82 30","strawberry@edunor.ru",1,1,1,0,1,1,0,0,0,17]
[null,null,"Муниципальное казенное дошкольное образовательное учреждение Новосибирского района Новосибирской области - детский сад комбинированного вида \"Лукоморье\" ( МКДОУ - детский сад \"Лукоморье\")","Дегтярева Валентина Алексеевна","(383)363 48 41","lukomorye@edunor.ru",1,1,1,0,1,1,0,0,0,39]
[null,null,"Муниципальное бюджетное дошкольное образовательное учреждение Новосибирского района Новосибирской области – детский сад \"Золотая рыбка\" ( МБДОУ – детский сад \"Золотая рыбка\")","Бадулина Светлана Алексеевна","(383) 204 96 02","zolotayaribka@edunor.ru",1,1,1,0,1,1,0,0,0,72]
[null,null,"Муниципальное казенное дошкольное образовательное учреждение Новосибирского района Новосибирской области детский сад «Лесная сказка» (МКДОУ - детский сад \"Лесная сказка\")","Стенина Наталья Владимировна","8-983-318-31-49","lesnayaskazka@edunor.ru",1,1,1,0,1,2,0,0,0,12]
[null,null,"Муниципальное бюджетное дошкольное образовательное учреждение Новосибирского района Новосибирской области - детский сад \"Кубики\" ( МБДОУ - детский сад \"Кубики\")","Свотина Евгения Николаевна","(383)213 22 55","kubiki@edunor.ru",1,1,1,0,1,1,0,0,0,25]
[null,null,"Итого",null,null,null,56,55,56,0,75,71,24,37,0,3444]

{"sheet":"Обь","index":30,"n_rows":65,"n_cols":16,"rows_kept":65,"cut":false,"hidden":false,"merged":[[0,1,0,10],[1,0,2,0],[1,1,2,1],[1,2,2,2],[1,3,1,5],[1,6,2,6],[1,7,2,7],[1,8,2,8],[1,9,2,9],[1,10,1,13],[33,0,34,0],[33,1,34,1],[1,14,2,14],[1,15,2,15],[3,0,9,0],[3,1,9,1],[18,1,19,1],[23,0,24,0],[23,1,24,1],[26,0,27,0],[26,1,27,1],[26,7,27,7],[29,0,30,0],[29,1,30,1],[46,10,54,10],[62,0,63,0],[62,1,63,1],[36,0,38,0],[36,1,38,1],[39,1,42,1],[43,1,45,1],[46,0,54,0],[46,1,54,1]]}
[null,"Перечень\nобразовательных организаций, оказывающих услуги консультативной, психолого-педагогической и методической помощи (далее - услуги) родителям (законным представителям) детей от 0 до 18 лет, а также гражданам, желающим принять на воспитание в свои семьи детей, оставшихся без попечения родителей, действующих на территории муниципальных образований Новосибирской области (далее - ОО, оказывающие услуги)\n"]
["№","Муниципальный район/городской округ","ОО, оказывающие услуги (полное название по Уставу)","Руководитель ОО, оказывающей услуги",null,null,"Наличие статуса КЦ/КП по локальным документам ОО (0-нет, 1 - есть, 2-планируется)","Наличие Приказа о создании КЦ/ оказании услуг в ОО (0-нет, 1 - есть)","Наличие пункта в  Уставе ОО об оказании услуг (0 - нет, 1 - есть) ","Наличие муниципального/госу-дарственного задания  по оказанию  услуг (0 - нет, 1 - есть) ","Количество специалистов, оказывающих услуги",null,null,null,"Количество специалистов, прошедших КПК по вопросам оказания услуг","Количество услуг, оказанных в 2020 г."]
[null,null,null,"Ф.И.О.","телефон","e-mail",null,null,null,null,"педагог-психолог","учитель-логопед","учитель-дефектолог","соц. педагог"]
["1.",null,"Муниципальное бюджетное дошкольное образовательное учреждение детский сад №3 \"Светлячок\" муниципального образования г. Обь Новосибирской области","Переверзева Антонида Геннадьевна","8(383)-73-53-843","sad3.ru@yandex.ru",1,1,1,0,1,2,0,0,0,25]
[null,null,"Муниципальное казенное учреждение \"Центр психолого-педагогической, медицинской и социальной помощи \"Вера\"","Лисина Юлия Викторовна","8 383 73 53 566","sppzvera@yandex.ru",1,1,1,0,2,2,0,1,2,1013]
[null,null,"Итого",null,null,null,2,2,2,0,3,4,0,1,2,1038]
[]
[]
[]
[]
[]
[]
[]
[]
[]
[]
[]
[]
[]
[]
[]
[]
[]
[]
[]
[]
[]
[]
[]
[]
[]
[]
[]
[]
[]
[]
[]
[]
[]
[]
[]
[]
[]
[]
[]
[]
[]
[]
[]
[]
[]
[]
[]
[]
[]
[]
[]
[]
[]
[]
[]
[]
[]
[]
[null,null,null,null,null,null,null,null,"."]

{"sheet":"Ордынский р-н","index":31,"n_rows":38,"n_cols":16,"rows_kept":38,"cut":false,"hidden":false,"merged":[[1,14,2,14],[1,15,2,15],[1,0,2,0],[1,1,2,1],[1,2,2,2],[1,3,1,5],[1,6,2,6],[1,7,2,7],[1,8,2,8],[1,9,2,9],[1,10,1,13]]}
["Ответственный",null,"Орлова Татьяна Николаевна","Тел","8(38359)23076","e-mail","orlovatatyana1976@mail.ru"]
["№","Муниципальный район/городской округ","ОО, оказывающие услуги (полное название по Уставу)","Руководитель ОО, оказывающей услуги",null,null,"Наличие статуса КЦ/КП по локальным документам ОО (0-нет, 1 - есть, 2-планируется)","Наличие Приказа о создании КЦ/ оказании услуг в ОО (0-нет, 1 - есть)","Наличие пункта в  Уставе ОО об оказании услуг (0 - нет, 1 - есть) ","Наличие муниципального/госу-дарственного задания  по оказанию  услуг (0 - нет, 1 - есть) ","Количество специалистов, оказывающих услуги",null,null,null,"Количество специалистов, прошедших КПК по вопросам оказания услуг","Количество услуг, оказанных в 2020 г."]
[null,null,null,"Ф.И.О.","телефон","e-mail",null,null,null,null,"педагог-психолог","учитель-логопед","учитель-дефектолог","соц. педагог"]
[1,"Ордынский","муниципальное казенное общеобразовательное учреждение Ордынского района Новосибирской области - Усть-Луковская средняя общеобразовательная школа ","Егоров Дмитрий Вячеславович","8 (383 59)46126","lukovka_school@mail.ru",0,1,0,0,1,0,0,1,0,10]
[2,"Ордынский","Муниципальное казённое  общеобразовательное  учреждение  Ордынского  района  Новосибирской  области - Ордынская  средняя  общеобразовательная  школа  № 3  ","Косенко Юрий Михайлович","8(38359)25235","3ordshcoll@ngs.ru",0,0,0,0,0,0,0,1,0,4]
[3,"Ордынский","муниципальное казенное общеобразовательное учреждение Ордынского района  Новосибирской области - Пролетарская средняя общеобразовательная школа ","Бессарабова Рита Дмитриевна ","8(38359) 20922","proletarka777@mail.ru",0,1,0,0,1,0,0,1,0,32]
[4,"Ордынский","мунципальное казенное общеобразовательное учреждение Ордынского района Новосибирской области - Ордынская средняя общеобразовательная школа №2","Палей Елена Михайловна","8(38359)21663","ordinskoll2@mail.ru",0,1,0,0,1,1,0,1,1,123]
[5,"Ордынский","мунципальное казенное общеобразовательное учреждение Ордынского района Новосибирской области - Козихинская средняя общеобразовательная школа ","Холодова Ольга Ивановна","8(38359)42596","kozihaschool@mail.ru",0,0,0,0,1,0,0,0,0,19]
[6,"Ордынский","мунципальное казенное общеобразовательное учреждение Ордынского района Новосибирской области - Спиринская основная общеобразовательная школа ","Малгин Сергей Николаевич","8(38359)47219","spirino72@yandex.ru",0,1,0,0,0,0,0,0,0,12]
[7,"Ордынский","мунципальное казенное дошкольное образовательное учреждение Ордынского района Новосибирской области - Ордынский детский сад \"Радуга\"","Куксина Татьяна Владимировна","8(38359)22584","cuksina.t@yandex.ru",0,0,0,0,0,1,0,0,0,4]
[8,"Ордынский","Муниципальное казенное общеобразовательное учреждение Ордынского района Новосибирской области  - Малоирменская основная общеобразовательная школа имени Героя Советского Союза П.Н.Шилова","Макашова Анна Ильинична","8(38359)40119","maloirmenka@mail.ru",0,1,0,0,0,0,0,1,0,22]
[9,"Ордынский","Муниципальное бюджетное общеобразовательное учреждение Ордынского района Новосибирской области-Верх-Ирменская средняя общеобразовательная школа имени Героя Советского Союза Александра Ивановича Демакова","Орешок Владимир Петрович","8(38359)34241","shirmeny@yandex.ru",0,0,0,0,2,2,0,1,0,187]
[10,"Ордынский","муниципальное казенное общеобразовательное учреждение Ордынского района Новосибирской области - Рогалевская средняя общеобразовательная школа","Ковкаева Наталья Викторовна","8(38359)45038","rogali.edu@mail.ru",0,1,0,0,1,1,0,1,0,56]
[11,"Ордынский","Муниципальное казённое общеобразовательное учреждение Ордынского района Новосибирской области - Ордынская средняя общеобразовательная школа № 1 имени Героя Советского Союза А.Д. Гаранина ","Шубина Анна Ивановна","8(383 59) 22565","ordshcoll1@yandex.ru",0,0,0,0,1,0,0,1,0,47]
[12,"Ордынский","муниципальное казенное дошкольное образовательное учреждение Ордынского района Новосибирской области- Вагайцевский детский сад \"Солнышко\"","Тропман Светлана Александровына","8(383 59) 24100","tropSveta@mail.ru",0,1,0,0,1,1,0,0,0,39]
[13,"Ордынский","Муниципальное казенное дошкольное образовательное учреждение Ордынского района Новосиирской области - Ордынский детский сад \"Ручеек\"","Фомина Наталья Владимировна","8(38359)23802","rucheek.ord@mail.ru",0,0,0,0,1,0,0,0,0,59]
[14,"Ордынский","муниципальное казенное общеобразовательное учреждение Ордынского района Новосибирской области-Верх-Алеусская средняя общеобразовательная школа имени Героя Советского Союза Н.В. Некрасова","Капранова Марина Васильевна","8(383 59) 41683","verhaleus_shkola@ngs.ru",0,1,0,0,0,0,0,0,0,54]
[15,"Ордынский","Муниципальное казенное общеобразовательное учреждение Ордынского района Новосибирской области-Нижнекаменская средняя общеобразовательная школа","Ильиных Максим Владимирович","8(38359)47590","n-kamenka-schkola@mail.ru",0,0,0,0,1,1,0,1,0,11]
[16,"Ордынский","Муниципальное казенное общеобразовательное учреждение Ордынского района Новосибирской области-Вагайцевская средняя общеобразовательная школа имени Н.Н.Медведева","Черноножкина Оксана Геннадьевна","8(38359)24845","vagaishkola@mail.ru",0,0,0,0,1,1,1,1,0,126]
[17,"Ордынский","муниципальное казенное общеобразовательное учреждение Ордынского района Новосибирской области - Верх-Чикская средняя общеобразовательная школа","Кострубина Светлана Ивановна","8(383 59)41575","verh_chik@list.ru",0,1,0,0,1,1,0,1,0,24]
[18,"Ордынский","Муниципальное казенное общеобразовательное учреждение - Петровская средняя общеобразовательная школа","Федоткина Елена Владимировна","8(38359)46884","petshkola@mail.ru",0,0,0,0,1,1,0,1,0,6]
[19,"Ордынский","муниципальное казенное дошкольное образовательное учреждение Ордынского района Новосибирской области - Новопичуговский детский сад «Золотой петушок»","Синченко Ангелина Ивановна","8( 383 59) 35-048","mbdoypichugi@mail.ru",0,0,0,0,0,1,0,0,0,2]
[20,"Ордынский","муниципальное казенное общеобразовательное учреждение Ордынского района Новосибирской области-Новопичуговская средняя общеобразовательная школа","Дегтева Лариса Юрьевна","8(383 59) 35-115","nps_007@mail.ru ",0,1,0,0,1,0,0,1,0,26]
[21,"Ордынский","муницыпальное казенное общеобразовательное учреждение Ордынского района Новосибирской области -  Березовская средняя общеобразовательная школа","Тепляничева Людмила Владимировна","8(38359)41949","berez_shkola@mail.ru",0,1,0,0,1,0,0,0,0,15]
[22,"Ордынский","Муниципальное   казенное  общеобразовательное учреждение Ордынского района Новосибирской  области  «Верх-Ирменская школа-интернат для детей с ограниченными возможностями здоровья»","Аршинова Вера Александровна","8(38359)34-201","vikorsh@yandex.ru",0,1,0,0,1,3,0,1,0,32]
[23,"Ордынский","муниципальное казенное дошкольное образовательное учреждение Ордынского района Новосибирской области - Ордынский детский сад \"Росинка\"","Карпушенкова Евгения Николаевна","8(38359)22-612","rosinka.02_ord@mail.ru",0,0,0,0,1,1,0,0,0,47]
[24,"Ордынский","муниципальное казенное общеобразовательное учреждение Ордынского района Новосибирской области - Красноярская средняя общеобразовательная школа имени Героя Советского Союза Г.М.Ивлева","Берсенева Ирина Владимировна","8 (383)59 49-249","krasnojar_shkola00@mail.ru",0,1,0,0,1,0,0,0,0,5]
[25,"Ордынский","муниципальное казенное дошкольное образовательное учреждение Ордынского района Новосибирской области - Чернаковкий детский сад \"Теремок\"","Цветкова Наталья Владимировна","38359-24-244","teremok1998@list.ru",0,0,0,0,0,0,0,0,0,14]
[26,"Ордынский","муниципальное казенное общеобразовательное учреждение Ордынского района Новосибирской области- Чернаковская начальная общеобразовательная школа","Соколова Тамара Васильевна","8(38359)24280","chern912007@mail.ru",0,0,0,0,1,0,0,0,0,5]
[27,"Ордынский","Муниципальное казенное общеобразовательное учреждение Ордынского района Новосибирской области - Кирзинская средняя общеобразовательная школа имени Героя Советского Союза В.М.Лыкова","Снегурова Татьяна Валерьевна","8-951-381-43-77","tvsnegur@mail.ru",0,1,0,0,2,0,0,0,0,70]
[28,"Ордынский","Муниципальное  казенное  общеобразовательное  учреждение  Ордынского района Новосибирской области - Филипповская средняя общеобразовательная школа","Лапшина Вера Викторовна","8(38359)48193","shkola-fil@yandex.ru",0,0,0,0,1,1,0,1,0,38]
[29,"Ордынский","муниципальное казенное общеобразовательное учреждение Ордынского района Новосибирской области Устюжанинская средняя общеобразовательная школа имени Героя Советского Союза Я.М.Устюжанина","Аверкина Татьяна Николаевна","8(38359)42430","ustuj_scl@mail.ru",0,0,0,0,0,1,0,1,0,2]
[30,"Ордынский","Муниципальное  казенное  общеобразовательное  учреждение  Ордынского района Новосибирской области - Чингисская средняя общеобразовательная школа","Клопова Наталья Викторовна",83835948617,"ching66@yandex.ru",0,1,0,0,1,null,null,1,0,3]
[31,"Ордынский","муниципальное казенное общеобразовательное учреждение Ордынского района Новосибирской области - Новокузьминская основная общеобразовательная школа","Коницких Ирина Владимировна","8(38359)35-156","novkuz@yandex.ru",0,1,0,0,0,0,0,0,0,2]
[32,"Ордынский","муниципальное казенное дошкольное образовательное учреждение Ордынского района Новосибирской области - Новошарапский детский сад \"Березка\"","Минаева Наталья Дмитриевна",83835940783,"sharsad@mail.ru",0,0,0,0,0,0,0,0,0,2]
[33,"Ордынский","Муниципальное бюджетное образовательное учреждение дополнительного образования Ордынского района Новосибирской области \"Дом детского творчества\"","Бердышева Людмила Алексеевна","8(38359)23546","berdysheva-22@mail.ru",0,0,0,0,1,0,0,1,0,21]
[34,"Ордынский","муниципальное казенное образовательное учреждение Ордынского района Новосибирской области -Новошарапская средняя общеобразовательная школа","Лихачев Денис Александрович",89137321175,"sharapshkola@mail.ru",0,0,0,0,1,1,0,0,0,46]
[null,null,"Итого",null,null,null,null,16,0,0,26,18,1,18,1,1165]

{"sheet":"Р,П,Кольцово","index":32,"n_rows":5,"n_cols":16,"rows_kept":5,"cut":false,"hidden":false,"merged":[[1,14,2,14],[1,15,2,15],[3,0,8,0],[3,1,8,1],[1,0,2,0],[1,1,2,1],[1,2,2,2],[1,3,1,5],[1,6,2,6],[1,7,2,7],[1,8,2,8],[1,9,2,9],[1,10,1,13]]}
["ОтветственныйКолмакова Юлия Николаевна",null,null,"Тел","349-98-64","e-mail","edu-kolzovo@yandex.ru"]
["№","Муниципальный район/городской округ","ОО, оказывающие услуги (полное название по Уставу)","Руководитель ОО, оказывающей услуги",null,null,"Наличие статуса КЦ/КП по локальным документам ОО (0-нет, 1 - есть, 2-планируется)","Наличие Приказа о создании КЦ/ оказании услуг в ОО (0-нет, 1 - есть)","Наличие пункта в  Уставе ОО об оказании услуг (0 - нет, 1 - есть) ","Наличие муниципального/госу-дарственного задания  по оказанию  услуг (0 - нет, 1 - есть) ","Количество специалистов, оказывающих услуги",null,null,null,"Количество специалистов, прошедших КПК по вопросам оказания услуг","Количество услуг, оказанных в 2020 г."]
[null,null,null,"Ф.И.О.","телефон","e-mail",null,null,null,null,"педагог-психолог","учитель-логопед","учитель-дефектолог","соц. педагог"]
["1.",null,"МБОУ \"Биотехнологический лицей №21\"","Тайлакова И.В.","(383)336-64-68","info@biolicey21.ru",1,1,1,0,2,2,1,2,0,93]
[null,null,"Итого",null,null,null,1,1,1,0,2,2,1,2,0,93]

{"sheet":"Северный р-н","index":33,"n_rows":5,"n_cols":16,"rows_kept":5,"cut":false,"hidden":false,"merged":[[1,14,2,14],[1,15,2,15],[3,0,8,0],[3,1,8,1],[1,0,2,0],[1,1,2,1],[1,2,2,2],[1,3,1,5],[1,6,2,6],[1,7,2,7],[1,8,2,8],[1,9,2,9],[1,10,1,13]]}
["Ответственный",null,"Смык\nМария Александровна\n","Тел","8(38360) 21997","e-mail","m.smik@yandex.ru"]
["№","Муниципальный район/городской округ","ОО, оказывающие услуги (полное название по Уставу)","Руководитель ОО, оказывающей услуги",null,null,"Наличие статуса КЦ/КП по локальным документам ОО","Наличие Приказа о создании КЦ/ оказании услуг в ОО","Наличие пункта в  Уставе ОО об оказании услуг ","Наличие муниципального/госу-дарственного задания  по оказанию  услуг ","Количество специалистов, оказывающих услуги",null,null,null,"Количество специалистов, прошедших КПК по вопросам оказания услуг","Количество услуг, оказанных в 2020 г."]
[null,null,null,"Ф.И.О.","телефон","e-mail",null,null,null,null,"педагог-психолог","учитель-логопед","учитель-дефектолог","соц. педагог"]
["1.","Северный район","Муниципальное казенное дошкольное образовательное учреждение Северного района Новосибирской области детский сад \"Сказка\"","Иванова Нина Леонтьевна",83836030001,"sev_sad@mail.ru",0,1,0,0,2,1,0,0,1,219]
[null,null,"Итого",null,null,null,null,1,0,0,2,1,0,0,1,219]

{"sheet":"Сузунский р-н","index":34,"n_rows":21,"n_cols":16,"rows_kept":21,"cut":false,"hidden":false,"merged":[[1,14,2,14],[1,15,2,15],[3,1,19,1],[12,0,19,0],[1,0,2,0],[1,1,2,1],[1,2,2,2],[1,3,1,5],[1,6,2,6],[1,7,2,7],[1,8,2,8],[1,9,2,9],[1,10,1,13]]}
["Ответственный",null,null,"Тел",null,"e-mail"]
["№","Муниципальный район/городской округ","ОО, оказывающие услуги (полное название по Уставу)","Руководитель ОО, оказывающей услуги",null,null,"Наличие статуса КЦ/КП по локальным документам ОО","Наличие Приказа о создании КЦ/ оказании услуг в ОО","Наличие пункта в  Уставе ОО об оказании услуг ","Наличие муниципального/госу-дарственного задания  по оказанию  услуг ","Количество специалистов, оказывающих услуги",null,null,null,"Количество специалистов, прошедших КПК по вопросам оказания услуг","Количество услуг, оказанных в 2020 г."]
[null,null,null,"Ф.И.О.","телефон","e-mail",null,null,null,null,"педагог-психолог","учитель-логопед","учитель-дефектолог","соц. педагог"]
["1.","Сузунский район","Муниципальное казённое общеобразовательное учреждение Сузунского района ``Битковская средняя общеобразовательная школа``","Палецкий Евгений Александрович","8(38346)31225","schooll_bitki@mail.ru",0,0,1,0,1,0,0,1,0,21]
[null,null,"Муниципальное бюджетное общеобразовательное учреждение Сузунского района ``Бобровская средняя общеобразовательная школа``","Черникова Ирина Викторовна","8(38346)33496         ","Bobr.suz@mail.ru",0,0,1,0,1,0,0,1,2,225]
[null,null,"Муниципальное бюджетное общеобразовательное учреждение Сузунского района``Болтовская средняя общеобразовательная школа``","Орехова Евгения Николаевна","8(38346)42382           ","eva29197@mail.ru",0,0,1,0,1,0,1,1,2,19]
[null,null,"Муниципальное бюджетное общеобразовательное учреждение Сузунского района``Ключиковская средняя общеобразовательная школа``","Солдатова Анна Крестьяновна","8(38346)48332            ","s_kluch.suz@mail.ru",0,0,1,0,1,0,0,1,0,35]
[null,null,"Муниципальное казённое общеобразовательное учреждение Сузунского района``Шайдуровская средняя общеобразовательная школа имени Героя Советского Союза Г.И. Выглазова``","Миначенко Олег Николаевич","8(38346)46269","direktor.99@mail.ru",0,0,1,0,1,0,0,1,1,16]
[null,null,"Муниципальное казённое общеобразовательное учреждение Сузунского района ``Шипуновская средняя общеобразовательная школа имени В.С. Гаврилова``","Васькина Нина Александровна","83834641537   ","s_ship.suz@inbox. ru",0,0,1,0,1,0,0,1,0,0]
[null,null,"Муниципальное бюджетное общеобразовательное учреждение Сузунского района``Сузунская средняя общеобразовательная школа № 1``","Кулигин Алексей Валерьевич","8(38346)22224               ","aleksei_kuligin87@mail.ru ",0,0,1,0,1,1,0,1,2,381]
[null,null,"Муниципальное бюджетное общеобразовательное учреждение Сузунского района``Сузунская средняя общеобразовательная школа № 2``","Попрыга Ольга Федоровна","8(38346)21955                           \n   ","suzunskayasosh2@mail.ru",0,0,1,0,2,2,null,2,1,184]
[null,null,"Муниципальное казённое общеобразовательное учреждение Сузунского района``Сузунская средняя общеобразовательная школа № 301 им. В.А. Левина``","Удалова Татьяна Николаевна","8(38346)32537       ","shcool.301.lewin@mail.ru",0,0,1,0,1,1,0,1,0,120]
[null,null,"Муниципальное казённое общеобразовательное учреждение Сузунского района \"Сузунская общеобразовательная школа-интернат для обучающихся воспитанников с ограниченными возможностями здоровья\"","Бакурова Лариса Павловна","8(38346)22577                   89232331866","Mmol2010@ngs.ru",0,0,1,0,2,3,1,2,3,351]
[null,null,"Муниципальное казённое общеобразовательное учреждение Сузунского района``Малышевская средняя общеобразовательная школа``","Федосова Наталья Евгеньевна","8(383)4649131  ","vfksitdj@mail.ru",0,0,1,0,0,0,0,1,0,7]
[null,null,"Муниципальное казённое дошкольное образовательное учреждение Сузунского района «Сузунскй детский сад № 1»","Суслова Оксана Васильевна","8(38346)22339               ","oksana.suslova.72@mail.ru",0,0,1,0,1,1,0,0,0,21]
[null,null,"Муниципальное казённое дошкольное образовательное учреждение Сузунского района «Сузунскй детский сад № 2»","Примачек Марина Александровна","8(38346)22719      ","marina.primachek.67@mail.ru",0,0,1,0,0,1,0,0,0,46]
[null,null,"Муниципальное казённое дошкольное образовательное учреждение Сузунского района «Сузунскй детский сад № 3»","Франк Светлана Евгеньевна","3(38346) 226-54, ","suzunmkdou3@mail.ru",0,0,1,0,0,1,0,0,0,15]
[null,null,"Муниципальное казённое дошкольное образовательное учреждение Сузунского района «Сузунскй детский сад № 4»","Постникова Олеся Петровна","8(38346)32395    ","suzunmkdoy4@mail.ru",0,0,1,0,0,1,0,0,0,19]
[null,null,"Муниципальное казённое дошкольное образовательное учреждение Сузунского района «Сузунскй детский сад № 5»","Мурзинцева Светлана Александровна","8(38346)22774                            ","suzunmkdoy5@mail.ru",1,1,1,0,1,1,0,0,2,103]
[null,null,"Муниципальное казённое дошкольное образовательное учреждение Сузунского района «Болтовский детский сад»","Кошелева Вера Аллэмовна","8(38346)42336       ","valiazwerewa2012@yandex.ru",0,0,1,0,1,1,0,0,0,21]
[null,null,"Итого",null,null,null,1,1,17,0,15,13,2,13,13,1584]

{"sheet":"Татарский р-н","index":35,"n_rows":4,"n_cols":16,"rows_kept":4,"cut":false,"hidden":false,"merged":[[1,14,2,14],[1,15,2,15],[1,0,2,0],[1,1,2,1],[1,2,2,2],[1,3,1,5],[1,6,2,6],[1,7,2,7],[1,8,2,8],[1,9,2,9],[1,10,1,13]]}
["Ответственный",null,null,"Тел",null,"e-mail"]
["№","Муниципальный район/городской округ","ОО, оказывающие услуги (полное название по Уставу)","Руководитель ОО, оказывающей услуги",null,null,"Наличие статуса КЦ/КП по локальным документам ОО (0-нет, 1 - есть, 2-планируется)","Наличие Приказа о создании КЦ/ оказании услуг в ОО (0-нет, 1 - есть)","Наличие пункта в  Уставе ОО об оказании услуг (0 - нет, 1 - есть) ","Наличие муниципального/госу-дарственного задания  по оказанию  услуг (0 - нет, 1 - есть) ","Количество специалистов, оказывающих услуги",null,null,null,"Количество специалистов, прошедших КПК по вопросам оказания услуг","Количество услуг, оказанных в 2020 г."]
[null,null,null,"Ф.И.О.","телефон","e-mail",null,null,null,null,"педагог-психолог","учитель-логопед","учитель-дефектолог","соц. педагог"]
[null,null,"Итого",0,0,0]

{"sheet":"Тогучинский р-н","index":36,"n_rows":6,"n_cols":16,"rows_kept":6,"cut":false,"hidden":false,"merged":[[1,14,2,14],[1,15,2,15],[3,0,8,0],[3,1,8,1],[1,0,2,0],[1,1,2,1],[1,2,2,2],[1,3,1,5],[1,6,2,6],[1,7,2,7],[1,8,2,8],[1,9,2,9],[1,10,1,13]]}
["Ответственный",null,"Лунева Анна Михайловна","Тел","8 383 40 24 855","e-mail","a-m-l@ngs.ru"]
["№","Муниципальный район/городской округ","ОО, оказывающие услуги (полное название по Уставу)","Руководитель ОО, оказывающей услуги",null,null,"Наличие статуса КЦ/КП по локальным документам ОО (0-нет, 1 - есть, 2-планируется)","Наличие Приказа о создании КЦ/ оказании услуг в ОО (0-нет, 1 - есть)","Наличие пункта в  Уставе ОО об оказании услуг (0 - нет, 1 - есть) ","Наличие муниципального/госу-дарственного задания  по оказанию  услуг (0 - нет, 1 - есть) ","Количество специалистов, оказывающих услуги",null,null,null,"Количество специалистов, прошедших КПК по вопросам оказания услуг","Количество услуг, оказанных в 2020 г."]
[null,null,null,"Ф.И.О.","телефон","e-mail",null,null,null,null,"педагог-психолог","учитель-логопед","учитель-дефектолог","соц. педагог"]
["1.","Тогучинский","Муниуипальнок казённое дошкольное образовательное учреждение Тогучинского района \"Тогучинский детский сад №1\"","Фатеева Юлия Леонидовна","8 383 40 27 335","gnezd.tog@yandex.ru",1,1,0,0,1,1,1,0,3,73]
[null,null,"Муниуипальнок казённое дошкольное образовательное учреждение Тогучинского района \"Горновский  детский сад №1\"","Исмаилова Марина Георгиевна","8 383 40 23 475","marina-ismailova@mail.ru",1,1,0,0,1,2,0,0,3,108]
[null,null,"Итого",null,null,null,2,2,0,0,2,3,1,0,6,181]

{"sheet":"Убинский р-н","index":37,"n_rows":8,"n_cols":16,"rows_kept":8,"cut":false,"hidden":false,"merged":[[1,14,2,14],[1,15,2,15],[3,0,8,0],[3,1,8,1],[1,0,2,0],[1,1,2,1],[1,2,2,2],[1,3,1,5],[1,6,2,6],[1,7,2,7],[1,8,2,8],[1,9,2,9],[1,10,1,13]]}
["Ответственный",null,null,"Тел",null,"e-mail"]
["№","Муниципальный район/городской округ","ОО, оказывающие услуги (полное название по Уставу)","Руководитель ОО, оказывающей услуги",null,null,"Наличие статуса КЦ/КП по локальным документам ОО (0-нет, 1 - есть, 2-планируется)","Наличие Приказа о создании КЦ/ оказании услуг в ОО (0-нет, 1 - есть)","Наличие пункта в  Уставе ОО об оказании услуг (0 - нет, 1 - есть) ","Наличие муниципального/госу-дарственного задания  по оказанию  услуг (0 - нет, 1 - есть) ","Количество специалистов, оказывающих услуги",null,null,null,"Количество специалистов, прошедших КПК по вопросам оказания услуг","Количество услуг, оказанных в 2020 г."]
[null,null,null,"Ф.И.О.","телефон","e-mail",null,null,null,null,"педагог-психолог","учитель-логопед","учитель-дефектолог","соц. педагог"]
["1.","Убинский ","Муниципальное казенное образовательное учреждение \"Владимировская средняя школа\" Убинского района Новосибирской области","Почуева Елена Владимировна","8(383)6624117","s_vlad_ubin@edu54.ru",0,0,0,0,0,0,0,1,0,0]
[null,null,"Муниципальное казённое общеобразовательное учреждение \"Ермолаевская средняя школа\" Убинского района Новосибирской области","Мурсалимов Ринат Гаптляхатович",83836647733,"s_erm_ubin@edu54.ru",0,0,0,0,0,0,0,0,0,0]
[null,null,"Муниципальное казённое общеобразовательное учреждение \" Раисинская  средняя школа\" Убинского района Новосибирской области","Тыртычная Светлана Тихоновна","8(383)6626297","s_rais_ubin@edu54.ru",0,0,0,0,1,0,0,1,null,10]
[null,null,"Муниципальное казённое общеобразовательное учреждение \"Убинская средняя школа №1\" Убинского района Новосибирской области","Москоленко Валентина Ивановна","8(383)6621638","ubn_ush_1@mail.ru",2,0,0,0,1,1,0,0,1,150]
[null,null,"Итого",null,null,null,null,0,0,0,2,1,0,2,1,160]

{"sheet":"Усть- Тарский р-н","index":38,"n_rows":7,"n_cols":16,"rows_kept":7,"cut":false,"hidden":false,"merged":[[1,14,2,14],[1,15,2,15],[3,0,8,0],[3,1,8,1],[1,0,2,0],[1,1,2,1],[1,2,2,2],[1,3,1,5],[1,6,2,6],[1,7,2,7],[1,8,2,8],[1,9,2,9],[1,10,1,13]]}
["Ответственный",null,"Балыкова Т.С.","Тел","8-383-72-22-228","e-mail","ust_roo.bts@mail.ru"]
["№","Муниципальный район/городской округ","ОО, оказывающие услуги (полное название по Уставу)","Руководитель ОО, оказывающей услуги",null,null,"Наличие статуса КЦ/КП по локальным документам ОО (0-нет, 1 - есть, 2-планируется)","Наличие Приказа о создании КЦ/ оказании услуг в ОО (0-нет, 1 - есть)","Наличие пункта в  Уставе ОО об оказании услуг (0 - нет, 1 - есть) ","Наличие муниципального/госу-дарственного задания  по оказанию  услуг (0 - нет, 1 - есть) ","Количество специалистов, оказывающих услуги",null,null,null,"Количество специалистов, прошедших КПК по вопросам оказания услуг","Количество услуг, оказанных в 2020 г."]
[null,null,null,"Ф.И.О.","телефон","e-mail",null,null,null,null,"педагог-психолог","учитель-логопед","учитель-дефектолог","соц. педагог"]
["1.","Усть-Таркский район","Муниципальное бюджетное общеобразовательное учреждение Усть-Таркская средняя общеобразовательная школа","Гончаров Леонид Викторович","8-383-72-23-600","ust_direktor@mail.ru ",1,1,1,0,1,1,0,1,0,302]
[null,null,"Муниципальное казенное дошкольное образовательное учреждение Усть-Таркский детский сад \"Колосок\"","Фельдбуш Светлана Максимовна","8-383-72-22-748","ustdskolosok@yandex.ru ",1,1,0,0,1,1,0,0,1,78]
[null,null,"Муниципальное казенное дошкольное образовательное учреждение Усть-Таркский детский сад \"Солнышко\"","Гордеева Наталья Александровна","8-383-72-22-108","dssolnyshko1984@mail.ru ",1,1,0,0,1,1,0,0,0,40]
[null,null,"Итого",null,null,null,3,3,1,0,3,3,0,1,1,420]

{"sheet":"Чановский р-н","index":39,"n_rows":13,"n_cols":16,"rows_kept":13,"cut":false,"hidden":false,"merged":[[1,14,2,14],[1,15,2,15],[3,0,11,0],[3,1,11,1],[1,0,2,0],[1,1,2,1],[1,2,2,2],[1,3,1,5],[1,6,2,6],[1,7,2,7],[1,8,2,8],[1,9,2,9],[1,10,1,13]]}
["Ответственный",null,null,"Тел",null,"e-mail"]
["№","Муниципальный район/городской округ","ОО, оказывающие услуги (полное название по Уставу)","Руководитель ОО, оказывающей услуги",null,null,"Наличие статуса КЦ/КП по локальным документам ОО (0-нет, 1 - есть, 2-планируется)","Наличие Приказа о создании КЦ/ оказании услуг в ОО (0-нет, 1 - есть)","Наличие пункта в  Уставе ОО об оказании услуг (0 - нет, 1 - есть) ","Наличие муниципального/госу-дарственного задания  по оказанию  услуг (0 - нет, 1 - есть) ","Количество специалистов, оказывающих услуги",null,null,null,"Количество специалистов, прошедших КПК по вопросам оказания услуг","Количество услуг, оказанных в 2020 г."]
[null,null,null,"Ф.И.О.","телефон","e-mail",null,null,null,null,"педагог-психолог","учитель-логопед","учитель-дефектолог","соц. педагог"]
["1.","Чановский","Муниципальное бюджетное дошкольное образовательное учреждение Чановский детский сад № 1 Чановского района Новосибирской области","Басонова Оксана Валерьевна","8(38367)21168","oks.basonowa@yandex.ru",1,1,1,0,1,1,0,0,0,75]
[null,null,"Муниципальное бюджетное дошкольное образовательное учреждение Чановский детский сад № 4 Чановского района Новосибирской области","Шахова Инна Викторовна","8(38367)24031","mbdou4@bk.ru",1,1,1,0,1,1,1,0,0,72]
[null,null,"Муниципальное бюджетное дошкольное образовательное учреждение Озеро-Карачинский детский сад Чановского района Новосибирской области","Филиппова Светлана Михайловна","8(38367)41534","sadkarachi@yandex.ru",1,1,1,0,1,1,0,0,null,72]
[null,null,"Муниципальное бюджетное общеобразовательное учреждение Чановская средняя школа № 1 Чановского района Новосибирской области","Матюха Людмила Викторовна","8(38367)21943","chsh1@mail.ru",0,1,1,0,2,1,1,1,0,87]
[null,null,"Муниципальное бюджетное общеобразовательное учреждение Чановская средняя школа № 2 Чановского района Новосибирской области","Гинзбург Елена Сергеевна","8(38367)21743","s_2_sosh@mail.ru",0,1,1,0,2,1,1,1,0,87]
[null,null,"Муниципальное бюджетное общеобразовательное учреждение Тебисская средняя школа им.75-летия Новосибирской области Чановского района Новосибирской области ","Давыдов Евгений Викторович","8(38367)34248","tebisschoolnso75@mail.ru",1,1,1,0,1,1,0,1,0,84]
[null,null,"Муниципальное бюджетное общеобразовательное учреждение Озеро-Карачинская средняя школа Чановского района Новосибирской области","и.о. Измайлова Альфия Харисовна","8(38367)41131","oksosh63@mail.ru",0,1,1,0,1,1,0,1,0,70]
[null,null,"Муниципальное бюджетное общеобразовательное учреждение Щегловская средняя школа Чановского района Новосибирской области","Хохлова Светлана Александровна","8(38367)35284","sheglovo@mail.ru",0,1,1,0,1,1,0,1,0,61]
[null,null,"Муниципальное бюджетное общеобразовательное учреждение Старокарачинская средняя школа Чановского района Новосибирской области ","и.о. Поспелова Анна Николаевна","8(38367)33532","starkar.cha@mail.ru",0,1,1,0,1,1,0,1,0,40]
[null,null,"Итого",null,null,null,4,9,9,0,11,9,3,6,0,648]

{"sheet":"Черепановский р-н","index":40,"n_rows":5,"n_cols":16,"rows_kept":5,"cut":false,"hidden":false,"merged":[[1,14,2,14],[1,15,2,15],[1,0,2,0],[1,1,2,1],[1,2,2,2],[1,3,1,5],[1,6,2,6],[1,7,2,7],[1,8,2,8],[1,9,2,9],[1,10,1,13]]}
["ОтветственныйКуприна Людмила Александровна",null,null,"Тел","8(38345)21741","e-mail","ludmila.kuprina2016@yandex.ru"]
["№","Муниципальный район/городской округ","ОО, оказывающие услуги (полное название по Уставу)","Руководитель ОО, оказывающей услуги",null,null,"Наличие статуса КЦ/КП по локальным документам ОО (0-нет, 1 - есть, 2-планируется)","Наличие Приказа о создании КЦ/ оказании услуг в ОО (0-нет, 1 - есть)","Наличие пункта в  Уставе ОО об оказании услуг (0 - нет, 1 - есть) ","Наличие муниципального/госу-дарственного задания  по оказанию  услуг (0 - нет, 1 - есть) ","Количество специалистов, оказывающих услуги",null,null,null,"Количество специалистов, прошедших КПК по вопросам оказания услуг","Количество услуг, оказанных в 2020 г."]
[null,null,null,"Ф.И.О.","телефон","e-mail",null,null,null,null,"педагог-психолог","учитель-логопед","учитель-дефектолог","соц. педагог"]
["1.","Черепановский район, г. Черепаново","Муниципальное дошкольное образовательное учреждение - детский сад №10 \"Колокольчик\"","Касева Елена Юрьевна","8 383-45-45-395","kolokolchik10@inbox.ru",1,1,1,0,1,1,null,null,1,33]
[null,null,"Итого",null,null,null,1,1,1,0,1,1,0,0,1,33]

{"sheet":"Чистоозерный р-н","index":41,"n_rows":6,"n_cols":16,"rows_kept":6,"cut":false,"hidden":false,"merged":[[1,14,2,14],[1,15,2,15],[3,0,4,0],[3,1,4,1],[1,0,2,0],[1,1,2,1],[1,2,2,2],[1,3,1,5],[1,6,2,6],[1,7,2,7],[1,8,2,8],[1,9,2,9],[1,10,1,13]]}
["Ответственный",null,null,"Тел",null,"e-mail"]
["№","Муниципальный район/городской округ","ОО, оказывающие услуги (полное название по Уставу)","Руководитель ОО, оказывающей услуги",null,null,"Наличие статуса КЦ/КП по локальным документам ОО","Наличие Приказа о создании КЦ/ оказании услуг в ОО","Наличие пункта в  Уставе ОО об оказании услуг ","Наличие муниципального/госу-дарственного задания  по оказанию  услуг ","Количество специалистов, оказывающих услуги",null,null,null,"Количество специалистов, прошедших КПК по вопросам оказания услуг","Количество услуг, оказанных в 2020 г."]
[null,null,null,"Ф.И.О.","телефон","e-mail",null,null,null,null,"педагог-психолог","учитель-логопед","учитель-дефектолог","соц. педагог"]
["1.","Чистоозерный","муниципальное бюджетное общеобразовательное учреждение \"Чистоозерная средняя общеобразовательная школа №2\" Чистоозерного района Новосибирской области","Зарубина\nТатьяна\nВладимировна","8(38368)91275","ou-2@yandex.ru",2,0,0,0,1,2,1,1,5,70]
[null,null,"Муниципальное бюджетное общеобразовательное учреждение Чистоозерного района Новосибирской области \"Чистоозерная средняя общеобразовательная школа №3\"","Матвеева\nВалентина\nПавловна","8(38368)99363","moy-3@yandex.ru",2,0,0,0,2,2,3,2,4,70]
[null,null,"Итого",null,null,null,null,0,0,0,3,4,4,3,9,140]

{"sheet":"Чулымский р-н","index":42,"n_rows":5,"n_cols":16,"rows_kept":5,"cut":false,"hidden":false,"merged":[[1,14,2,14],[1,15,2,15],[3,0,8,0],[3,1,8,1],[1,0,2,0],[1,1,2,1],[1,2,2,2],[1,3,1,5],[1,6,2,6],[1,7,2,7],[1,8,2,8],[1,9,2,9],[1,10,1,13]]}
["Ответственный",null,null,"Тел",null,"e-mail"]
["№","Муниципальный район/городской округ","ОО, оказывающие услуги (полное название по Уставу)","Руководитель ОО, оказывающей услуги",null,null,"Наличие статуса КЦ/КП по локальным документам ОО","Наличие Приказа о создании КЦ/ оказании услуг в ОО","Наличие пункта в  Уставе ОО об оказании услуг ","Наличие муниципального/госу-дарственного задания  по оказанию  услуг ","Количество специалистов, оказывающих услуги",null,null,null,"Количество специалистов, прошедших КПК по вопросам оказания услуг","Количество услуг, оказанных в 2020 г."]
[null,null,null,"Ф.И.О.","телефон","e-mail",null,null,null,null,"педагог-психолог","учитель-логопед","учитель-дефектолог","соц. педагог"]
["1.","Чулымский район","Муниципальное казенное общеобразовательное учреждение Чулымский лицей","Шалоньно Татьяна Анатольевна","22-333","licey-chul@list.ru",0,0,1,0,1,1,1,0,3,322]
[null,null,"Итого",null,null,null,null,0,1,0,1,1,1,0,3,322]

{"sheet":"Конец","index":43,"n_rows":0,"n_cols":0,"rows_kept":0,"cut":false,"hidden":false,"merged":[]}